Workbook

Sheet Reporting Activity
B2: Quarterly Reports | C2: Number of unique facilities/companies
B3: Producer | C3: 10
B4: Imports | C4: 75
B5: Exports | C5: 26
B6: Exports (non-Importers) | C6: 4
B7: Reclamation | C7: 31
B8: Fire Suppression | C8: 4
B10: Biannual Reports | C10: Number of unique facilities/companies
B11: App-specific Allowance Holder | C11: 55
B13: One-Time Reports | C13: Number of unique facilities/companies
B14: Destruction | C14: 10
B15: Transformation | C15: 3
B16: Process Agent | C16: 4
B17: Production | C17: 7
B18: Reclamation
B20: As Needed Reports | C20: Number of unique facilities/companies | D20: Number of Reports | E20: Months of Activity | F20: Average Reports/Company/Year
B21: Transfers | C21: 11 | D21: 34 | E21: 12 | F21: =D21/C21*12/E21 -> 3.090909091
B22: Conferrals (Suppliers) | C22: 3 | D22: 8 | E22: 12 | F22: 2.666666667
B23: Conferrals (App-specific Allowance Holders) | C23: 25 | D23: 93 | E23: 13 | F23: =D23/C23*12/E23 -> 3.433846154
B24: RACA | C24: 16 | D24: 249 | E24: 12 | F24: =D24/C24*12/E24 -> 15.5625
B25: Petitions | C25: 2 | D25: 63 | E25: 9 | F25: 42
B26: Transhipments | C26: 1 | D26: 2 | E26: 12 | F26: =D26/C26*12/E26 -> 2
B28: Source: HFC Submission Summary Report (2.14.23)

Sheet Respondent Assumptions
A1: Responent Burden Assumptions
J3: Respondents per Year | P3: Certification ID Respondent Burden Assumptions | AB3: Audit Costs | AF3: ACE Report Burden Assumptions
B4: Respondent Type | C4: Acitvity | D4: Technical Hours per Response | E4: Clerical Hours per Response | F4: Responses per Year | G4: Maximum Respondents per Acitvity | H4: Basis for Assumptions | J4: Respondent Type | K4: Acitvity | L4: Y1 (2024) | M4: Y2 (2025) | N4: Y3 (2026) | P4: Respondent | Q4: Number of Cylinders | R4: Cylinder Capacity (lbs) | S4: Total HFC Quantity (lbs) | T4: ISO Tank Capacity (lbs) | U4: Number of ISO Tanks | V4: Number of ID Generators/ Scanners | W4: Responses/ Year/Respondent | X4: Time per Response | Y4: Unit of Response Time | Z4: Time per Response (hours) | AB4: Auditor Labor Rate ($) | AC4: Auditor Time (hours) | AD4: Total Cost to Respondent ($) | AF4: Respondent | AG4: Total Annual Shipments | AH4: Total Respondents | AI4: Responses/Respondent | AJ4: Time per Response | AK4: Unit of Response Time | AL4: Time per Response (hours)
B5: HFC Producer | C5: Submit one-time producer report | D5: 100 | E5: 0 | F5: 1 | G5: 1 | H5: Assumes up to one response per year to account for revisions or new production facilities. | J5: HFC Producer | K5: =C5 -> Submit one-time producer report | L5: =1/$G$5*$G$5 -> 1 | M5: =1/$G$5*$G$5 -> 1 | N5: 1 | P5: Producer, importer | Q5: =5.94*10^6 -> 5940000 | R5: 30 | S5: =Q5*R5 -> 178200000 | T5: 60000 | U5: =S5/T5 -> 2970 | V5: =SUM(G6,G14) -> 85 | W5: =U5/V5 -> 34.94117647 | X5: 2 | Y5: Hours | Z5: =IF(Y5="Hours",X5,IF(Y5="Minutes",X5/60,X5/3600)) -> 2 | AB5: =ROUND(37.14*2.1,2) -> 77.99 | AC5: 80 | AD5: =AB5*AC5 -> 6239.2 | AF5: Importer | AG5: 7500 | AH5: =G14 -> 75 | AI5: =AG5/AH5 -> 100 | AJ5: 15 | AK5: Minutes | AL5: =IF(AK5="Hours",AJ5,IF(AK5="Minutes",AJ5/60,AJ5/3600)) -> 0.25
C6: Submit quarterly report | D6: =6 -> 6 | E6: 0 | F6: 4 | G6: ='Reporting Activity'!C3 -> 10 | H6: Number of facilities based on HFC 2022 report submissions | K6: Submit quarterly report | L6: =$G6 -> 10 | M6: =$G6 -> 10 | N6: 10 | P6: Reclaimer, filler/packager, fire suppression recycler | Q6: =Q5 -> 5940000 | R6: NA | S6: NA | T6: NA | U6: NA | V6: =SUM(G52,G57,G60) -> 85 | W6: =Q6/V6 -> 69882.35294 | X6: 20 | Y6: Seconds | Z6: =IF(Y6="Hours",X6,IF(Y6="Minutes",X6/60,X6/3600)) -> 0.005555555556
C7: Submit annual inventory report (part of quarterly report) | D7: 20 | E7: 0 | F7: 1 | G7: =G6 -> 10 | H7: Number of facilities based on HFC 2022 report submissions | K7: Submit annual inventory report (part of quarterly report) | L7: =$G7 -> 10 | M7: 10 | N7: 10 | P7: Supplier | Q7: =1.5*Q6 -> 8910000 | R7: NA | S7: NA | T7: NA | U7: NA | V7: =G34 -> 10000 | W7: =Q7/V7 -> 891 | X7: 10 | Y7: Seconds | Z7: 0.002777777778
C8: Maintain records | D8: 0 | E8: 100 | F8: 1 | G8: =G6 -> 10 | H8: Number of facilities based on HFC 2022 report submissions | K8: Maintain records | L8: =$G8 -> 10 | M8: 10 | N8: 10
C9: Register with certification ID system | D9: 0.5 | E9: 0 | F9: 1 | G9: =G6 -> 10 | H9: Number of facilities based on HFC 2022 report submissions | K9: Register with certification ID system | L9: =$G9*Q13 -> 10 | M9: =$G9*R13 -> 1 | N9: =$G9*S13 -> 1
C10: Enter data into certification ID system | D10: =Z5 -> 2 | E10: 0 | F10: =ROUND(W5,0) -> 35 | G10: =G6 -> 10 | H10: See 'Certification ID Respondent Burden Assumptions' table | K10: Enter data into certification ID system | L10: =$G10*Q24 -> 2.5 | M10: =$G10*R24 -> 10 | N10: =$G10*S24 -> 10 | P10: Certification ID Respondent Percentage per Year
C11: Submit annual HFC-23 emissions report | D11: 12 | E11: 0 | F11: 1 | G11: 4 | H11: Burden estimate for reporting to eGGRT under subpart O from GHGRP ICR 2019 renewal; Respndents based on eGGRT subpart O reporting | K11: Submit annual HFC-23 emissions report | L11: =$G11 -> 4 | M11: 4 | N11: 4 | Q11: Certification ID Registration
C12: Submit HFC-23 proof of destruction | D12: 0.25 | E12: 0 | F12: 2 | G12: 4 | K12: Submit HFC-23 proof of destruction | L12: 4 | M12: 4 | N12: 4 | Q12: Y1 (2024) | R12: Y2 (2025) | S12: Y3 (2026)
C13: Provide certification to third party (conferrer) | D13: 2 | E13: 0 | F13: 1 | G13: =G36-G24 -> 1 | H13: Based on second party transformation and destruction verification assumption | K13: Provide certification to third party (conferrer) | L13: 1 | M13: 1 | N13: 1 | P13: Producer | Q13: 1 | R13: =1/$G$9 -> 0.1 | S13: =1/$G$9 -> 0.1
B14: HFC Importer | C14: Submit quarterly report | D14: =6 -> 6 | E14: 0 | F14: 4 | G14: ='Reporting Activity'!C4 -> 75 | H14: Number of companies based on HFC 2022 report submissions | J14: HFC Importer | K14: Submit quarterly report | L14: =$G14 -> 75 | M14: 75 | N14: 75 | P14: Importer | Q14: 1 | R14: =1/$G$17 -> 0.01333333333 | S14: =1/$G$17 -> 0.01333333333
C15: Submit annual inventory report (part of quarterly report) | D15: 10 | E15: 0 | F15: 1 | G15: =G14 -> 75 | H15: Number of companies based on HFC 2022 report submissions | K15: Submit annual inventory report (part of quarterly report) | L15: 75 | M15: 75 | N15: 75 | P15: Reclaimer | Q15: 0 | R15: 1 | S15: =1/$G$55 -> 0.03225806452
C16: Maintain records | D16: 0 | E16: 100 | F16: 1 | G16: =G14 -> 75 | H16: Number of companies based on HFC 2022 report submissions | K16: Maintain records | L16: 75 | M16: 75 | N16: 75 | P16: Filler/Packager | Q16: 0 | R16: 1 | S16: =1/$G$57 -> 0.02
C17: Register with certification ID system | D17: 0.5 | E17: 0 | F17: 1 | G17: =G14 -> 75 | H17: Number of companies based on HFC 2022 report submissions | K17: Register with certification ID system | L17: =$G17*Q14 -> 75 | M17: =$G17*R14 -> 1 | N17: =$G17*S14 -> 1 | P17: Fire Suppression Recycler | Q17: 0 | R17: 1 | S17: =1/$G$63 -> 0.25
C18: Enter data into certification ID system | D18: =Z5 -> 2 | E18: 0 | F18: =ROUND(W5,0) -> 35 | G18: =G14 -> 75 | H18: See 'Certification ID Respondent Burden Assumptions' table | K18: Enter data into certification ID system | L18: =$G18*Q24 -> 18.75 | M18: =$G18*R24 -> 75 | N18: =$G18*S24 -> 75 | P18: Supplier | Q18: 0 | R18: 0 | S18: 1
C19: Petition to import HFCs for transformation/destruction | D19: 2 | E19: 0 | F19: =ROUND('Reporting Activity'!F25,0) -> 42 | G19: ='Reporting Activity'!C25 -> 2 | H19: Activity based on HFC 2022 report submissions from mid-March | K19: Petition to import HFCs for transformation/destruction | L19: =$G19 -> 2 | M19: 2 | N19: 2
C20: Petition to import used HFCs for destruction | D20: 6 | E20: 0 | F20: =ROUND(10/G20,0) -> 5 | G20: 2 | H20: Activity based on 2022 DPETI submissions | K20: Petition to import used HFCs for destruction | L20: 2 | M20: 2 | N20: 2
C21: Submit ACE report | D21: =AL5 -> 0.25 | E21: 0 | F21: =AI5 -> 100 | G21: =G14 -> 75 | H21: 7500 unique shipments based on historical ACE data; Number of companies based on HFC 2022 report submissions | K21: Submit ACE report | L21: 75 | M21: 75 | N21: 75 | Q21: Certification ID Data Entry
C22: Submit proof of destruction of used imports | D22: 0.25 | E22: 0 | F22: =F20 -> 5 | G22: =G20 -> 2 | K22: Submit proof of destruction of used imports | L22: 2 | M22: 2 | N22: 2 | Q22: Y1 (2024) | R22: Y2 (2025) | S22: Y3 (2026)
C23: Maintain records on used imports for destruction | D23: 0 | E23: 20 | F23: 1 | G23: =G20 -> 2 | K23: Maintain records on used imports for destruction | L23: 2 | M23: 2 | N23: 2 | P23: Producer | Q23: 0.25 | R23: 1 | S23: 1
C24: Provide certification to third party (conferrer) | D24: 2 | E24: 0 | F24: 1 | G24: =ROUND(G36/2,0) -> 2 | H24: Based on second party transformation and destruction verification assumption | K24: Provide certification to third party (conferrer) | L24: 2 | M24: 2 | N24: 2 | P24: Importer | Q24: 0.25 | R24: 1 | S24: 1
C25: Submit Importer of Record annual report | D25: 2 | E25: 0 | F25: 1 | G25: =G14 -> 75 | H25: Number of companies based on HFC 2022 report submissions | K25: Submit Importer of Record annual report | L25: 75 | M25: 75 | N25: 75 | P25: Reclaimer | Q25: 0 | R25: 0.25 | S25: 1
C26: Submit notification of transhipments | D26: 1 | E26: 0 | F26: 4 | G26: ='Reporting Activity'!C26 -> 1 | H26: Based on 2022 HSHIP submissions | K26: Submit notification of transhipments | L26: =$G26 -> 1 | M26: 1 | N26: 1 | P26: Filler/Packager | Q26: 0 | R26: 0.25 | S26: 1
B27: HFC Aggregator | C27: Maintain records | D27: 0 | E27: 20 | F27: 1 | G27: 5 | H27: Provided by EPA | J27: HFC Aggregator | K27: Maintain records | L27: =$G27 -> 5 | M27: 5 | N27: 5 | P27: Fire Suppression Recycler | Q27: 0 | R27: 0.25 | S27: 1
B28: Vessel Owner | C28: Maintain records | D28: 0 | E28: 20 | F28: 1 | G28: 100 | H28: Provided by EPA | J28: Vessel Owner | K28: Maintain records | L28: 100 | M28: 100 | N28: 100 | P28: Supplier | Q28: 0 | R28: 0 | S28: 0.25
B29: HFC Exporter | C29: Submit quarterly report | D29: =6 -> 6 | E29: 0 | F29: 4 | G29: ='Reporting Activity'!C5 -> 26 | H29: Number of companies based on HFC 2022 report submissions | J29: HFC Exporter | K29: Submit quarterly report | L29: 26 | M29: 26 | N29: 26
C30: Submit annual inventory report (part of quarterly report) | D30: 10 | E30: 0 | F30: 1 | G30: =G29 -> 26 | H30: Number of companies based on HFC 2022 report submissions | K30: Submit annual inventory report (part of quarterly report) | L30: 26 | M30: 26 | N30: 26
C31: Maintain records | D31: 0 | E31: 20 | F31: 1 | G31: ='Reporting Activity'!C6 -> 4 | H31: Number of companies based on HFC 2022 report submissions; reflects companies that only export (i.e., non-importers) | K31: Maintain records | L31: 4 | M31: 4 | N31: 4
C32: Submit request for additional consumption allowances | D32: 6 | E32: 0 | F32: =ROUND('Reporting Activity'!F24,0) -> 16 | G32: ='Reporting Activity'!C24 -> 16 | H32: Activity based on 2022 HRACA submissions | K32: Submit request for additional consumption allowances | L32: 16 | M32: 16 | N32: 16
C33: Submit notification of transhipments | D33: 1 | E33: 0 | F33: 4 | G33: =G26 -> 1 | H33: Based on 2022 HSHIP submissions | K33: Submit notification of transhipments | L33: =$G33 -> 1 | M33: 1 | N33: 1
B34: HFC Suppliers | C34: Register with certification ID system | D34: 0.5 | E34: 0 | F34: 1 | G34: =(5000*2) -> 10000 | H34: 2x HARDI wholesaler/distributor locations | J34: HFC Suppliers | K34: Register with certification ID system | L34: =$G34*Q18 -> 0 | M34: =$G34*R18 -> 0 | N34: =$G34*S18 -> 10000
C35: Enter data into certification ID system | D35: =Z7 -> 0.002777777778 | E35: 0 | F35: =W7 -> 891 | G35: =G34 -> 10000 | H35: 2x HARDI wholesaler/distributor locations; See 'Certification ID Respondent Burden Assumptions' table | K35: Enter data into certification ID system | L35: =$G35*Q28 -> 0 | M35: =$G35*R28 -> 0 | N35: =$G35*S28 -> 2500
C36: Submit conferral request | D36: 6 | E36: 0 | F36: =ROUND('Reporting Activity'!F22,0) -> 3 | G36: ='Reporting Activity'!C22 -> 3 | H36: Based on 2022 HCONF submissions | K36: Submit conferral request | L36: =$G36 -> 3 | M36: 3 | N36: 3
C37: Provide certification to third party (conferee) | D37: 2 | E37: 0 | F37: =F36 -> 3 | G37: =G36 -> 3 | H37: Based on 2022 HCONF submissions | K37: Provide certification to third party (conferee) | L37: 3 | M37: 3 | N37: 3
C38: Provide certification to third party (conferrer) | D38: 2 | E38: 0 | F38: 4 | G38: =G36 -> 3 | H38: Based on 2022 HCONF submissions | K38: =C38 -> Provide certification to third party (conferrer) | L38: 3 | M38: 3 | N38: 3
C39: Maintain records | D39: 0 | E39: 20 | F39: 1 | G39: =G36 -> 3 | H39: Based on 2022 HCONF submissions | K39: Maintain records | L39: 3 | M39: 3 | N39: 3
B40: HFC Destoyer | C40: Submit one-time report | D40: 100 | E40: 0 | F40: 1 | G40: 1 | H40: Assumes up to one response per year to account for revisions or new destruction facilities. | J40: HFC Destoyer | K40: Submit one-time report | L40: =$G40 -> 1 | M40: 1 | N40: 1
C41: Submit annual second party report | D41: 4 | E41: 0 | F41: 1 | G41: ='Reporting Activity'!C14 -> 10 | H41: Number of facilities based on HFC 2022 one-time report submissions | K41: Submit annual second party report | L41: =$G41 -> 10 | M41: =$G41 -> 10 | N41: 10
C42: Maintain records | D42: 0 | E42: 20 | F42: 1 | G42: =G41 -> 10 | H42: Number of facilities based on HFC 2022 one-time report submissions | K42: Maintain records | L42: =$G42 -> 10 | M42: 10 | N42: 10
C43: Provide destruction verification to third party | D43: 2 | E43: 0 | F43: 1 | G43: =G41 -> 10 | H43: Number of facilities based on HFC 2022 one-time report submissions | K43: Provide destruction verification to third party | L43: =$G43 -> 10 | M43: 10 | N43: 10
C44: Provide proof of destruction to third party | D44: 2 | E44: 0 | F44: 1 | G44: =G20*F20 -> 10 | H44: Number of petitions to import HFCs for destruction | K44: Provide proof of destruction to third party | L44: 10 | M44: 10 | N44: 10
B45: HFC Transformer | C45: Submit one-time report | D45: 100 | E45: 0 | F45: 1 | G45: 1 | H45: Assumes up to one response per year to account for revisions or new transformation facilities. | J45: HFC Transformer | K45: Submit one-time report | L45: =$G45 -> 1 | M45: 1 | N45: 1
C46: Submit annual second party report | D46: 4 | E46: 0 | F46: 1 | G46: ='Reporting Activity'!C15 -> 3 | H46: Number of facilities based on HFC 2022 one-time report submissions | K46: Submit annual second party report | L46: =$G46 -> 3 | M46: 3 | N46: 3
C47: Maintain records | D47: 0 | E47: 20 | F47: 1 | G47: =G46 -> 3 | H47: Number of facilities based on HFC 2022 one-time report submissions | K47: Maintain records | L47: 3 | M47: 3 | N47: 3
C48: Provide transformation verification to third party | D48: 2 | E48: 0 | F48: 1 | G48: =G46 -> 3 | H48: Number of facilities based on HFC 2022 one-time report submissions | K48: Provide transformation verification to third party | L48: 3 | M48: 3 | N48: 3
B49: HFC Process Agent Use | C49: Submit one-time report | D49: 100 | E49: 0 | F49: 1 | G49: 1 | H49: Assumes up to one response per year to account for revisions or new process agent end-users | J49: HFC Process Agent Use | K49: Submit one-time report | L49: =$G49 -> 1 | M49: 1 | N49: 1
C50: Submit annual report | D50: 6 | E50: 0 | F50: 1 | G50: ='Reporting Activity'!C16 -> 4 | H50: Number of facilities based on HFC 2022 one-time report submissions | K50: Submit annual report | L50: =$G50 -> 4 | M50: 4 | N50: 4
B51: HFC Reclaimers | C51: Submit one-time report | D51: 40 | E51: 0 | F51: 1 | G51: 0 | H51: Assumes up to one response per year to account for revisions. | J51: HFC Reclaimers | K51: Submit one-time report | L51: =$G51 -> 0 | M51: 0 | N51: 0
C52: Submit quarterly report | D52: 9.4 | E52: 0 | F52: 4 | G52: ='Reporting Activity'!C7 -> 31 | H52: Burden for annual activity report from Section 608 ICR, number of companies based on HFC 2022 report submissions | K52: Submit quarterly report | L52: =$G52 -> 31 | M52: 31 | N52: 31
C53: Submit annual inventory report (part of quarterly report) | D53: 10 | E53: 0 | F53: 1 | G53: =G52 -> 31 | H53: Number of companies based on HFC 2022 report submissions | K53: Submit annual inventory report (part of quarterly report) | L53: 31 | M53: 31 | N53: 31
C54: Maintain records | D54: 0 | E54: 60 | F54: 1 | G54: =G52 -> 31 | H54: Number of companies based on HFC 2022 report submissions | K54: Maintain records | L54: 31 | M54: 31 | N54: 31
C55: Register with certification ID system | D55: 0.5 | E55: 0 | F55: 1 | G55: =G52 -> 31 | H55: Number of companies based on HFC 2022 report submissions | K55: Register with certification ID system | L55: =$G55*Q15 -> 0 | M55: =$G55*R15 -> 31 | N55: =$G55*S15 -> 1
C56: Enter data into certification ID system | D56: =Z6 -> 0.005555555556 | E56: 0 | F56: =ROUND(W6,0) -> 69882 | G56: =G52 -> 31 | H56: See 'Certification ID Respondent Burden Assumptions' table | K56: Enter data into certification ID system | L56: =$G56*Q25 -> 0 | M56: =$G56*R25 -> 7.75 | N56: =$G56*S25 -> 31
B57: HFC Fillers and Packagers | C57: Register with certification ID system | D57: =D55 -> 0.5 | E57: 0 | F57: 1 | G57: 50 | H57: Provided by EPA | J57: HFC Fillers and Packagers | K57: Register with certification ID system | L57: =$G57*Q16 -> 0 | M57: =$G57*R16 -> 50 | N57: =$G57*S16 -> 1
C58: Enter data into certification ID system | D58: =Z6 -> 0.005555555556 | E58: 0 | F58: =ROUND(W6,0) -> 69882 | G58: 50 | H58: See 'Certification ID Respondent Burden Assumptions' table | K58: Enter data into certification ID system | L58: =$G58*Q26 -> 0 | M58: =$G58*R26 -> 12.5 | N58: =$G58*S26 -> 50
C59: Maintain records | D59: 0 | E59: 20 | F59: 1 | G59: 50 | K59: Maintain records | L59: =$M57 -> 50 | M59: =$M57 -> 50 | N59: =$M57 -> 50
B60: HFC Fire Suppression Agent Recyclers | C60: Submit quarterly report | D60: =D52 -> 9.4 | E60: 0 | F60: 4 | G60: ='Reporting Activity'!C8 -> 4 | H60: Burden for annual activity report from Section 608 ICR, number of respondents based on HFC 2022 report submissions | J60: HFC Fire Suppression Agent Recyclers | K60: Submit quarterly report | L60: =$G60 -> 4 | M60: 4 | N60: 4
C61: Submit annual inventory report (part of quarterly report) | D61: =D53 -> 10 | E61: 0 | F61: 1 | G61: =G60 -> 4 | H61: Number of respondents based on HFC 2022 report submissions | K61: Submit annual inventory report (part of quarterly report) | L61: 4 | M61: 4 | N61: 4
C62: Maintain records | D62: 0 | E62: 40 | F62: 1 | G62: =G60 -> 4 | H62: Number of respondents based on HFC 2022 report submissions | K62: Maintain records | L62: 4 | M62: 4 | N62: 4
C63: Register with certification ID system | D63: =D55 -> 0.5 | E63: 0 | F63: 1 | G63: =G60 -> 4 | H63: Number of respondents based on HFC 2022 report submissions | K63: Register with certification ID system | L63: =$G63*Q17 -> 0 | M63: =$G63*R17 -> 4 | N63: =$G63*S17 -> 1
C64: Enter data into certification ID system | D64: =Z6 -> 0.005555555556 | E64: 0 | F64: =ROUND(W6,0) -> 69882 | G64: =G60 -> 4 | H64: See 'Certification ID Respondent Burden Assumptions' table | K64: Enter data into certification ID system | L64: =$G64*Q27 -> 0 | M64: =$G64*R27 -> 1 | N64: =$G64*S27 -> 4
B65: HFC Transfers | C65: Submit inter-company transfer request | D65: 6 | E65: 0 | F65: =ROUND('Reporting Activity'!F21,0) -> 3 | G65: ='Reporting Activity'!C21 -> 11 | H65: Activity based on 2022 HTRAN submissions | J65: HFC Transfers | K65: Submit inter-company transfer request | L65: =$G65 -> 11 | M65: 11 | N65: 11
C66: Submit request to transfer from a person in a foreign country | D66: =D65 -> 6 | E66: 0 | F66: 1 | G66: 1 | H66: ICF estimate | K66: Submit request to transfer from a person in a foreign country | L66: 1 | M66: 1 | N66: 1
C67: Submit request to transfer to a person in a foreign country | D67: =D65 -> 6 | E67: 0 | F67: 1 | G67: 1 | H67: ICF estimate | K67: Submit request to transfer to a person in a foreign country | L67: 1 | M67: 1 | N67: 1
C68: Submit request to sell/transfer HFCs produced/imported with application-specific allowances | D68: =D65 -> 6 | E68: 0 | F68: 1 | G68: 5 | H68: ICF estimate | K68: Submit request to sell/transfer HFCs produced/imported with application-specific allowances | L68: 5 | M68: 5 | N68: 5
B69: Application-Specific Allowance Holders | C69: Submit biannual report | D69: 6 | E69: 0 | F69: 2 | G69: 46 | H69: Based on 2023 allowance recipients | J69: Application-Specific Allowance Holders | K69: Submit biannual report | L69: 46 | M69: 46 | N69: 46
C70: Submit annual report (part of biannual report) | D70: 6 | E70: 0 | F70: 1 | G70: =G69+8 -> 54 | H70: Based on 2023 allowance recipients plus 8 to account for new applicants | K70: Submit annual report (part of biannual report) | L70: =$G70 -> 54 | M70: 54 | N70: 54
C71: Submit conferral request | D71: 6 | E71: 0 | F71: =ROUND('Reporting Activity'!D23/'Respondent Assumptions'!G71,0) -> 2 | G71: =G69 -> 46 | H71: Based on application-specific allowance holders minus companies with consumption allowances; based on HCONF submissions | K71: =C71 -> Submit conferral request | L71: 46 | M71: 46 | N71: 46
C72: Provide certification to third party (conferee) | D72: 2 | E72: 0 | F72: =F71 -> 2 | G72: =G71 -> 46 | K72: =C72 -> Provide certification to third party (conferee) | L72: 46 | M72: 46 | N72: 46
C73: Maintain records | D73: 0 | E73: 80 | F73: 1 | G73: =G69 -> 46 | H73: Based on 2023 allowance recipients | K73: =C73 -> Maintain records | L73: 46 | M73: 46 | N73: 46
B74: Third Party Audits | C74: Submit annual audit report | D74: 40 | E74: 0 | F74: 1 | G74: =G6+G14+G52+G69 -> 162 | H74: Importers + producers + reclaimers + application specific allowance holders | J74: Third Party Audits | K74: =C74 -> Submit annual audit report | L74: 162 | M74: 162 | N74: 162
B75: Unique number of Respondents | G75: =G6+G14+G52+G27+G41+G46+G58+G60+G69+G34 -> 10234 | H75: aggregators + producers + importers + suppliers + reclaimers+ destroyers + transformers + fillers/packagers + application specific allowance holders (assumes other respondents overlap with these activities)

Sheet Respondent Burden - ICR
A1: Responent Burden
B3: Respondent Type | C3: Activity | D3: Responses per Respondent per Year | E3: Technical Hours per Response | F3: Clerical Hours per Response | G3: Total Hours per Respondent per Year | H3: Labor Cost per Respondent per Year | I3: O&M Costs per Respondent per Year | J3: Respondents per Activity per Year | M3: Total Responses per Year | P3: Total Hours per Year | S3: Total Labor Cost per Year | V3: Total O&M Costs per Year | W3: Total Cost per Year | AB3: Year | AC3: Total Responses | AD3: Total Hours | AE3: Total Labor Costs | AF3: Total O&M Costs | AG3: Total Costs
J4: Y1 | K4: Y2 | L4: Y3 | M4: Y1 | N4: Y2 | O4: Y3 | P4: Y1 | Q4: Y2 | R4: Y3 | S4: Y1 | T4: Y2 | U4: Y3 | W4: Y1 | X4: Y2 | Y4: Y3
A5: 1 | B5: HFC Producer | C5: ='Respondent Assumptions'!C5 -> Submit one-time producer report | D5: ='Respondent Assumptions'!F5 -> 1 | E5: ='Respondent Assumptions'!D5 -> 100 | F5: ='Respondent Assumptions'!E5 -> 0 | G5: =D5*(E5+F5) -> 100 | H5: =(D5*E5*$B$80)+(D5*F5*$B$81) -> 12713 | I5: 0 | J5: ='Respondent Assumptions'!L5 -> 1 | K5: ='Respondent Assumptions'!M5 -> 1 | L5: ='Respondent Assumptions'!N5 -> 1 | M5: =$D5*J5 -> 1 | N5: =$D5*K5 -> 1 | O5: =$D5*L5 -> 1 | P5: =J5*$G5 -> 100 | Q5: =K5*$G5 -> 100 | R5: =L5*$G5 -> 100 | S5: =$H5*J5 -> 12713 | T5: =$H5*K5 -> 12713 | U5: =$H5*L5 -> 12713 | V5: =I5*J5 -> 0 | W5: =S5+$V5 -> 12713 | X5: =T5+$V5 -> 12713 | Y5: =U5+$V5 -> 12713 | Z5: 1 | AB5: Year 1 | AC5: =M75 -> 10465.75 | AD5: =P75 -> 37615.5 | AE5: =S75 -> 4304852.515 | AF5: =V75 -> 1028100.4 | AG5: =W75 -> 5332952.915
A6: 1 | C6: ='Respondent Assumptions'!C6 -> Submit quarterly report | D6: ='Respondent Assumptions'!F6 -> 4 | E6: ='Respondent Assumptions'!D6 -> 6 | F6: ='Respondent Assumptions'!E6 -> 0 | G6: 24 | H6: 3051.12 | I6: 0 | J6: ='Respondent Assumptions'!L6 -> 10 | K6: ='Respondent Assumptions'!M6 -> 10 | L6: ='Respondent Assumptions'!N6 -> 10 | M6: 40 | N6: 40 | O6: 40 | P6: 240 | Q6: 240 | R6: 240 | S6: 30511.2 | T6: 30511.2 | U6: 30511.2 | V6: 0 | W6: =S6+$V6 -> 30511.2 | X6: =T6+$V6 -> 30511.2 | Y6: =U6+$V6 -> 30511.2 | Z6: 1 | AB6: Year 2 | AC6: =N75 -> 1497691.5 | AD6: =Q75 -> 50328.95833 | AE6: =T75 -> 5921114.473 | AF6: =AF5 -> 1028100.4 | AG6: =X75 -> 6949214.873
C7: ='Respondent Assumptions'!C7 -> Submit annual inventory report (part of quarterly report) | D7: ='Respondent Assumptions'!F7 -> 1 | E7: ='Respondent Assumptions'!D7 -> 20 | F7: ='Respondent Assumptions'!E7 -> 0 | G7: 20 | H7: 2542.6 | I7: 0 | J7: ='Respondent Assumptions'!L7 -> 10 | K7: ='Respondent Assumptions'!M7 -> 10 | L7: ='Respondent Assumptions'!N7 -> 10 | M7: 10 | N7: 10 | O7: 10 | P7: 200 | Q7: 200 | R7: 200 | S7: 25426 | T7: 25426 | U7: 25426 | V7: 0 | W7: 25426 | X7: 25426 | Y7: 25426 | Z7: 1 | AB7: Year 3 | AC7: =O75 -> 8190087 | AD7: =R75 -> 86225.33333 | AE7: =U75 -> 10484620.63 | AF7: =AF6 -> 1028100.4 | AG7: =Y75 -> 11512721.03
C8: ='Respondent Assumptions'!C8 -> Maintain records | D8: ='Respondent Assumptions'!F8 -> 1 | E8: ='Respondent Assumptions'!D8 -> 0 | F8: ='Respondent Assumptions'!E8 -> 100 | G8: 100 | H8: 10023 | I8: 50 | J8: ='Respondent Assumptions'!L8 -> 10 | K8: ='Respondent Assumptions'!M8 -> 10 | L8: ='Respondent Assumptions'!N8 -> 10 | M8: 10 | N8: 10 | O8: 10 | P8: 1000 | Q8: 1000 | R8: 1000 | S8: 100230 | T8: 100230 | U8: 100230 | V8: 500 | W8: 100730 | X8: 100730 | Y8: 100730 | Z8: 2 | AB8: Annual Average | AC8: =AVERAGE(AC5:AC7) -> 3232748.083 | AD8: =AVERAGE(AD5:AD7) -> 58056.59722 | AE8: =AVERAGE(AE5:AE7) -> 6903529.205 | AF8: =AVERAGE(AF5:AF7) -> 1028100.4 | AG8: =AVERAGE(AG5:AG7) -> 7931629.605
C9: ='Respondent Assumptions'!C9 -> Register with certification ID system | D9: ='Respondent Assumptions'!F9 -> 1 | E9: ='Respondent Assumptions'!D9 -> 0.5 | F9: ='Respondent Assumptions'!E9 -> 0 | G9: 0.5 | H9: 63.565 | I9: 0 | J9: ='Respondent Assumptions'!L9 -> 10 | K9: ='Respondent Assumptions'!M9 -> 1 | L9: ='Respondent Assumptions'!N9 -> 1 | M9: 10 | N9: 1 | O9: 1 | P9: 5 | Q9: 0.5 | R9: 0.5 | S9: 635.65 | T9: 63.565 | U9: 63.565 | V9: 0 | W9: 635.65 | X9: 63.565 | Y9: 63.565 | Z9: 1 | AC9: =AC8-M77 -> 0 | AD9: =AD8-P77 -> 0 | AE9: =AE8-S77 -> 0 | AF9: =AF8-V77 -> 0 | AG9: =AG8-W77 -> 0
C10: ='Respondent Assumptions'!C10 -> Enter data into certification ID system | D10: ='Respondent Assumptions'!F10 -> 35 | E10: ='Respondent Assumptions'!D10 -> 2 | F10: ='Respondent Assumptions'!E10 -> 0 | G10: =D10*(E10+F10) -> 70 | H10: 8899.1 | I10: 0 | J10: ='Respondent Assumptions'!L10 -> 2.5 | K10: ='Respondent Assumptions'!M10 -> 10 | L10: ='Respondent Assumptions'!N10 -> 10 | M10: 87.5 | N10: 350 | O10: 350 | P10: 175 | Q10: 700 | R10: 700 | S10: =$H10*J10 -> 22247.75 | T10: 88991 | U10: 88991 | V10: 0 | W10: =S10+$V10 -> 22247.75 | X10: 88991 | Y10: 88991 | Z10: 1 | AD10: =AD8/AC8 -> 0.01795889928
A11: 1 | C11: ='Respondent Assumptions'!C11 -> Submit annual HFC-23 emissions report | D11: ='Respondent Assumptions'!F11 -> 1 | E11: ='Respondent Assumptions'!D11 -> 12 | F11: ='Respondent Assumptions'!E11 -> 0 | G11: 12 | H11: 1525.56 | I11: 50 | J11: ='Respondent Assumptions'!L11 -> 4 | K11: ='Respondent Assumptions'!M11 -> 4 | L11: ='Respondent Assumptions'!N11 -> 4 | M11: =$D11*J11 -> 4 | N11: 4 | O11: 4 | P11: 48 | Q11: 48 | R11: 48 | S11: 6102.24 | T11: 6102.24 | U11: 6102.24 | V11: 200 | W11: 6302.24 | X11: 6302.24 | Y11: 6302.24 | Z11: 1
A12: 1 | C12: ='Respondent Assumptions'!C12 -> Submit HFC-23 proof of destruction | D12: ='Respondent Assumptions'!F12 -> 2 | E12: ='Respondent Assumptions'!D12 -> 0.25 | F12: ='Respondent Assumptions'!E12 -> 0 | G12: 0.5 | H12: 63.565 | I12: 0 | J12: ='Respondent Assumptions'!L12 -> 4 | K12: ='Respondent Assumptions'!M12 -> 4 | L12: ='Respondent Assumptions'!N12 -> 4 | M12: 8 | N12: 8 | O12: 8 | P12: 2 | Q12: 2 | R12: 2 | S12: 254.26 | T12: 254.26 | U12: 254.26 | V12: 0 | W12: 254.26 | X12: 254.26 | Y12: 254.26 | Z12: 1
C13: ='Respondent Assumptions'!C13 -> Provide certification to third party (conferrer) | D13: ='Respondent Assumptions'!F13 -> 1 | E13: ='Respondent Assumptions'!D13 -> 2 | F13: ='Respondent Assumptions'!E13 -> 0 | G13: 2 | H13: 254.26 | I13: 0 | J13: ='Respondent Assumptions'!L13 -> 1 | K13: ='Respondent Assumptions'!M13 -> 1 | L13: ='Respondent Assumptions'!N13 -> 1 | M13: 1 | N13: 1 | O13: 1 | P13: 2 | Q13: 2 | R13: 2 | S13: 254.26 | T13: 254.26 | U13: 254.26 | V13: 0 | W13: 254.26 | X13: 254.26 | Y13: 254.26 | Z13: 3 | AB13: Total Hours/Year | AC13: Year 1 | AD13: Year 2 | AE13: Year 3 | AF13: Average
A14: 1 | B14: HFC Importer | C14: ='Respondent Assumptions'!C14 -> Submit quarterly report | D14: ='Respondent Assumptions'!F14 -> 4 | E14: ='Respondent Assumptions'!D14 -> 6 | F14: ='Respondent Assumptions'!E14 -> 0 | G14: 24 | H14: 3051.12 | I14: 0 | J14: ='Respondent Assumptions'!L14 -> 75 | K14: ='Respondent Assumptions'!M14 -> 75 | L14: ='Respondent Assumptions'!N14 -> 75 | M14: 300 | N14: 300 | O14: 300 | P14: 1800 | Q14: 1800 | R14: 1800 | S14: 228834 | T14: 228834 | U14: 228834 | V14: 0 | W14: 228834 | X14: 228834 | Y14: 228834 | Z14: 1 | AB14: Reporting | AC14: =SUMIF($Z$5:$Z$74,"1",P$5:P$74) -> 19597.5 | AD14: =SUMIF($Z$5:$Z$74,"1",Q$5:Q$74) -> 32310.95833 | AE14: =SUMIF($Z$5:$Z$74,"1",R$5:R$74) -> 68207.33333 | AF14: =AVERAGE(AC14:AE14) -> 40038.59722
C15: ='Respondent Assumptions'!C15 -> Submit annual inventory report (part of quarterly report) | D15: ='Respondent Assumptions'!F15 -> 1 | E15: ='Respondent Assumptions'!D15 -> 10 | F15: ='Respondent Assumptions'!E15 -> 0 | G15: 10 | H15: 1271.3 | I15: 0 | J15: ='Respondent Assumptions'!L15 -> 75 | K15: ='Respondent Assumptions'!M15 -> 75 | L15: ='Respondent Assumptions'!N15 -> 75 | M15: 75 | N15: 75 | O15: 75 | P15: 750 | Q15: 750 | R15: 750 | S15: 95347.5 | T15: 95347.5 | U15: 95347.5 | V15: 0 | W15: =S15+$V15 -> 95347.5 | X15: 95347.5 | Y15: 95347.5 | Z15: 1 | AB15: Recordkeeping | AC15: =SUMIF($Z$5:$Z$74,"2",P$5:P$74) -> 17740 | AD15: =SUMIF($Z$5:$Z$74,"2",Q$5:Q$74) -> 17740 | AE15: =SUMIF($Z$5:$Z$74,"2",R$5:R$74) -> 17740 | AF15: =AVERAGE(AC15:AE15) -> 17740
C16: ='Respondent Assumptions'!C16 -> Maintain records | D16: ='Respondent Assumptions'!F16 -> 1 | E16: ='Respondent Assumptions'!D16 -> 0 | F16: ='Respondent Assumptions'!E16 -> 100 | G16: 100 | H16: 10023 | I16: 50 | J16: ='Respondent Assumptions'!L16 -> 75 | K16: ='Respondent Assumptions'!M16 -> 75 | L16: ='Respondent Assumptions'!N16 -> 75 | M16: 75 | N16: 75 | O16: 75 | P16: 7500 | Q16: 7500 | R16: 7500 | S16: 751725 | T16: 751725 | U16: 751725 | V16: 3750 | W16: 755475 | X16: 755475 | Y16: 755475 | Z16: 2 | AF16: =SUM(AF14:AF15) -> 57778.59722
C17: ='Respondent Assumptions'!C17 -> Register with certification ID system | D17: ='Respondent Assumptions'!F17 -> 1 | E17: ='Respondent Assumptions'!D17 -> 0.5 | F17: ='Respondent Assumptions'!E17 -> 0 | G17: 0.5 | H17: 63.565 | I17: 0 | J17: ='Respondent Assumptions'!L17 -> 75 | K17: ='Respondent Assumptions'!M17 -> 1 | L17: ='Respondent Assumptions'!N17 -> 1 | M17: 75 | N17: 1 | O17: 1 | P17: 37.5 | Q17: 0.5 | R17: 0.5 | S17: 4767.375 | T17: 63.565 | U17: 63.565 | V17: 0 | W17: 4767.375 | X17: 63.565 | Y17: 63.565 | Z17: 1
C18: ='Respondent Assumptions'!C18 -> Enter data into certification ID system | D18: ='Respondent Assumptions'!F18 -> 35 | E18: ='Respondent Assumptions'!D18 -> 2 | F18: ='Respondent Assumptions'!E18 -> 0 | G18: 70 | H18: 8899.1 | I18: 0 | J18: ='Respondent Assumptions'!L18 -> 18.75 | K18: ='Respondent Assumptions'!M18 -> 75 | L18: ='Respondent Assumptions'!N18 -> 75 | M18: 656.25 | N18: 2625 | O18: 2625 | P18: 1312.5 | Q18: 5250 | R18: 5250 | S18: 166858.125 | T18: 667432.5 | U18: 667432.5 | V18: 0 | W18: 166858.125 | X18: 667432.5 | Y18: 667432.5 | Z18: 1
C19: ='Respondent Assumptions'!C19 -> Petition to import HFCs for transformation/destruction | D19: ='Respondent Assumptions'!F19 -> 42 | E19: ='Respondent Assumptions'!D19 -> 2 | F19: ='Respondent Assumptions'!E19 -> 0 | G19: 84 | H19: 10678.92 | I19: 0 | J19: ='Respondent Assumptions'!L19 -> 2 | K19: ='Respondent Assumptions'!M19 -> 2 | L19: ='Respondent Assumptions'!N19 -> 2 | M19: 84 | N19: 84 | O19: 84 | P19: 168 | Q19: 168 | R19: 168 | S19: 21357.84 | T19: 21357.84 | U19: 21357.84 | V19: 0 | W19: 21357.84 | X19: 21357.84 | Y19: 21357.84 | Z19: 1
C20: ='Respondent Assumptions'!C20 -> Petition to import used HFCs for destruction | D20: ='Respondent Assumptions'!F20 -> 5 | E20: ='Respondent Assumptions'!D20 -> 6 | F20: ='Respondent Assumptions'!E20 -> 0 | G20: 30 | H20: 3813.9 | I20: 0 | J20: ='Respondent Assumptions'!L20 -> 2 | K20: ='Respondent Assumptions'!M20 -> 2 | L20: ='Respondent Assumptions'!N20 -> 2 | M20: 10 | N20: 10 | O20: 10 | P20: 60 | Q20: 60 | R20: 60 | S20: 7627.8 | T20: 7627.8 | U20: 7627.8 | V20: 0 | W20: 7627.8 | X20: 7627.8 | Y20: 7627.8 | Z20: 1
C21: ='Respondent Assumptions'!C21 -> Submit ACE report | D21: ='Respondent Assumptions'!F21 -> 100 | E21: ='Respondent Assumptions'!D21 -> 0.25 | F21: ='Respondent Assumptions'!E21 -> 0 | G21: 25 | H21: 3178.25 | I21: 0 | J21: ='Respondent Assumptions'!L21 -> 75 | K21: ='Respondent Assumptions'!M21 -> 75 | L21: ='Respondent Assumptions'!N21 -> 75 | M21: 7500 | N21: 7500 | O21: 7500 | P21: 1875 | Q21: 1875 | R21: 1875 | S21: 238368.75 | T21: 238368.75 | U21: 238368.75 | V21: 0 | W21: 238368.75 | X21: 238368.75 | Y21: 238368.75 | Z21: 1
A22: 1 | C22: ='Respondent Assumptions'!C22 -> Submit proof of destruction of used imports | D22: ='Respondent Assumptions'!F22 -> 5 | E22: ='Respondent Assumptions'!D22 -> 0.25 | F22: ='Respondent Assumptions'!E22 -> 0 | G22: 1.25 | H22: 158.9125 | I22: 0 | J22: ='Respondent Assumptions'!L22 -> 2 | K22: ='Respondent Assumptions'!M22 -> 2 | L22: ='Respondent Assumptions'!N22 -> 2 | M22: 10 | N22: 10 | O22: 10 | P22: 2.5 | Q22: 2.5 | R22: 2.5 | S22: 317.825 | T22: 317.825 | U22: 317.825 | V22: 0 | W22: 317.825 | X22: 317.825 | Y22: 317.825 | Z22: 1
C23: ='Respondent Assumptions'!C23 -> Maintain records on used imports for destruction | D23: ='Respondent Assumptions'!F23 -> 1 | E23: ='Respondent Assumptions'!D23 -> 0 | F23: ='Respondent Assumptions'!E23 -> 20 | G23: 20 | H23: 2004.6 | I23: 50 | J23: ='Respondent Assumptions'!L23 -> 2 | K23: ='Respondent Assumptions'!M23 -> 2 | L23: ='Respondent Assumptions'!N23 -> 2 | M23: 2 | N23: 2 | O23: 2 | P23: 40 | Q23: 40 | R23: 40 | S23: 4009.2 | T23: 4009.2 | U23: 4009.2 | V23: 100 | W23: 4109.2 | X23: 4109.2 | Y23: 4109.2 | Z23: 2
C24: ='Respondent Assumptions'!C24 -> Provide certification to third party (conferrer) | D24: ='Respondent Assumptions'!F24 -> 1 | E24: ='Respondent Assumptions'!D24 -> 2 | F24: ='Respondent Assumptions'!E24 -> 0 | G24: 2 | H24: 254.26 | I24: 0 | J24: ='Respondent Assumptions'!L24 -> 2 | K24: ='Respondent Assumptions'!M24 -> 2 | L24: ='Respondent Assumptions'!N24 -> 2 | M24: 2 | N24: 2 | O24: 2 | P24: 4 | Q24: 4 | R24: 4 | S24: 508.52 | T24: 508.52 | U24: 508.52 | V24: 0 | W24: 508.52 | X24: 508.52 | Y24: 508.52 | Z24: 3
A25: 1 | C25: ='Respondent Assumptions'!C25 -> Submit Importer of Record annual report | D25: ='Respondent Assumptions'!F25 -> 1 | E25: ='Respondent Assumptions'!D25 -> 2 | F25: ='Respondent Assumptions'!E25 -> 0 | G25: 2 | H25: 254.26 | I25: 0 | J25: ='Respondent Assumptions'!L25 -> 75 | K25: ='Respondent Assumptions'!M25 -> 75 | L25: ='Respondent Assumptions'!N25 -> 75 | M25: 75 | N25: 75 | O25: 75 | P25: 150 | Q25: 150 | R25: 150 | S25: 19069.5 | T25: 19069.5 | U25: 19069.5 | V25: 0 | W25: 19069.5 | X25: 19069.5 | Y25: 19069.5 | Z25: 1
C26: ='Respondent Assumptions'!C26 -> Submit notification of transhipments | D26: ='Respondent Assumptions'!F26 -> 4 | E26: ='Respondent Assumptions'!D26 -> 1 | F26: ='Respondent Assumptions'!E26 -> 0 | G26: 4 | H26: 508.52 | I26: 0 | J26: ='Respondent Assumptions'!L26 -> 1 | K26: ='Respondent Assumptions'!M26 -> 1 | L26: ='Respondent Assumptions'!N26 -> 1 | M26: 4 | N26: 4 | O26: 4 | P26: 4 | Q26: 4 | R26: 4 | S26: 508.52 | T26: 508.52 | U26: 508.52 | V26: 0 | W26: 508.52 | X26: 508.52 | Y26: 508.52 | Z26: 1
B27: HFC Aggregator | C27: ='Respondent Assumptions'!C27 -> Maintain records | D27: ='Respondent Assumptions'!F27 -> 1 | E27: ='Respondent Assumptions'!D27 -> 0 | F27: ='Respondent Assumptions'!E27 -> 20 | G27: 20 | H27: 2004.6 | I27: 50 | J27: ='Respondent Assumptions'!L27 -> 5 | K27: ='Respondent Assumptions'!M27 -> 5 | L27: ='Respondent Assumptions'!N27 -> 5 | M27: 5 | N27: 5 | O27: 5 | P27: 100 | Q27: 100 | R27: 100 | S27: 10023 | T27: 10023 | U27: 10023 | V27: 250 | W27: 10273 | X27: 10273 | Y27: 10273 | Z27: 2
B28: Vessel Owner | C28: ='Respondent Assumptions'!C28 -> Maintain records | D28: ='Respondent Assumptions'!F28 -> 1 | E28: ='Respondent Assumptions'!D28 -> 0 | F28: ='Respondent Assumptions'!E28 -> 20 | G28: 20 | H28: 2004.6 | I28: 50 | J28: ='Respondent Assumptions'!L28 -> 100 | K28: ='Respondent Assumptions'!M28 -> 100 | L28: ='Respondent Assumptions'!N28 -> 100 | M28: 100 | N28: 100 | O28: 100 | P28: 2000 | Q28: 2000 | R28: 2000 | S28: 200460 | T28: 200460 | U28: 200460 | V28: 5000 | W28: 205460 | X28: 205460 | Y28: 205460 | Z28: 2
A29: 1 | B29: HFC Exporter | C29: ='Respondent Assumptions'!C29 -> Submit quarterly report | D29: ='Respondent Assumptions'!F29 -> 4 | E29: ='Respondent Assumptions'!D29 -> 6 | F29: ='Respondent Assumptions'!E29 -> 0 | G29: 24 | H29: 3051.12 | I29: 0 | J29: ='Respondent Assumptions'!L29 -> 26 | K29: ='Respondent Assumptions'!M29 -> 26 | L29: ='Respondent Assumptions'!N29 -> 26 | M29: 104 | N29: 104 | O29: 104 | P29: 624 | Q29: 624 | R29: 624 | S29: 79329.12 | T29: 79329.12 | U29: 79329.12 | V29: 0 | W29: 79329.12 | X29: 79329.12 | Y29: 79329.12 | Z29: 1
C30: ='Respondent Assumptions'!C30 -> Submit annual inventory report (part of quarterly report) | D30: ='Respondent Assumptions'!F30 -> 1 | E30: ='Respondent Assumptions'!D30 -> 10 | F30: ='Respondent Assumptions'!E30 -> 0 | G30: 10 | H30: 1271.3 | I30: 0 | J30: ='Respondent Assumptions'!L30 -> 26 | K30: ='Respondent Assumptions'!M30 -> 26 | L30: ='Respondent Assumptions'!N30 -> 26 | M30: 26 | N30: 26 | O30: 26 | P30: 260 | Q30: 260 | R30: 260 | S30: 33053.8 | T30: 33053.8 | U30: 33053.8 | V30: 0 | W30: 33053.8 | X30: 33053.8 | Y30: 33053.8 | Z30: 1
C31: ='Respondent Assumptions'!C31 -> Maintain records | D31: ='Respondent Assumptions'!F31 -> 1 | E31: ='Respondent Assumptions'!D31 -> 0 | F31: ='Respondent Assumptions'!E31 -> 20 | G31: =D31*(E31+F31) -> 20 | H31: 2004.6 | I31: 50 | J31: ='Respondent Assumptions'!L31 -> 4 | K31: ='Respondent Assumptions'!M31 -> 4 | L31: ='Respondent Assumptions'!N31 -> 4 | M31: =$D31*J31 -> 4 | N31: =$D31*K31 -> 4 | O31: =$D31*L31 -> 4 | P31: =J31*$G31 -> 80 | Q31: =K31*$G31 -> 80 | R31: =L31*$G31 -> 80 | S31: =$H31*J31 -> 8018.4 | T31: =$H31*K31 -> 8018.4 | U31: =$H31*L31 -> 8018.4 | V31: =I31*J31 -> 200 | W31: =S31+$V31 -> 8218.4 | X31: =T31+$V31 -> 8218.4 | Y31: =U31+$V31 -> 8218.4 | Z31: 2
A32: 1 | C32: ='Respondent Assumptions'!C32 -> Submit request for additional consumption allowances | D32: ='Respondent Assumptions'!F32 -> 16 | E32: ='Respondent Assumptions'!D32 -> 6 | F32: ='Respondent Assumptions'!E32 -> 0 | G32: 96 | H32: 12204.48 | I32: 0 | J32: ='Respondent Assumptions'!L32 -> 16 | K32: ='Respondent Assumptions'!M32 -> 16 | L32: ='Respondent Assumptions'!N32 -> 16 | M32: 256 | N32: 256 | O32: 256 | P32: 1536 | Q32: 1536 | R32: 1536 | S32: 195271.68 | T32: 195271.68 | U32: 195271.68 | V32: 0 | W32: 195271.68 | X32: 195271.68 | Y32: 195271.68 | Z32: 1
C33: ='Respondent Assumptions'!C33 -> Submit notification of transhipments | D33: ='Respondent Assumptions'!F33 -> 4 | E33: ='Respondent Assumptions'!D33 -> 1 | F33: ='Respondent Assumptions'!E33 -> 0 | G33: 4 | H33: 508.52 | I33: 0 | J33: ='Respondent Assumptions'!L33 -> 1 | K33: ='Respondent Assumptions'!M33 -> 1 | L33: ='Respondent Assumptions'!N33 -> 1 | M33: 4 | N33: 4 | O33: 4 | P33: 4 | Q33: 4 | R33: 4 | S33: 508.52 | T33: 508.52 | U33: 508.52 | V33: 0 | W33: 508.52 | X33: 508.52 | Y33: 508.52 | Z33: 1
B34: HFC Suppliers | C34: ='Respondent Assumptions'!C34 -> Register with certification ID system | D34: ='Respondent Assumptions'!F34 -> 1 | E34: ='Respondent Assumptions'!D34 -> 0.5 | F34: ='Respondent Assumptions'!E34 -> 0 | G34: =D34*(E34+F34) -> 0.5 | H34: =(D34*E34*$B$80)+(D34*F34*$B$81) -> 63.565 | I34: 0 | J34: ='Respondent Assumptions'!L34 -> 0 | K34: ='Respondent Assumptions'!M34 -> 0 | L34: ='Respondent Assumptions'!N34 -> 10000 | M34: =$D34*J34 -> 0 | N34: =$D34*K34 -> 0 | O34: =$D34*L34 -> 10000 | P34: =J34*$G34 -> 0 | Q34: =K34*$G34 -> 0 | R34: =L34*$G34 -> 5000 | S34: =$H34*J34 -> 0 | T34: =$H34*K34 -> 0 | U34: =$H34*L34 -> 635650 | V34: =I34*J34 -> 0 | W34: 0 | X34: 0 | Y34: 635650 | Z34: 1
C35: ='Respondent Assumptions'!C35 -> Enter data into certification ID system | D35: ='Respondent Assumptions'!F35 -> 891 | E35: ='Respondent Assumptions'!D35 -> 0.002777777778 | F35: ='Respondent Assumptions'!E35 -> 0 | G35: 2.475 | H35: 314.64675 | I35: 0 | J35: ='Respondent Assumptions'!L35 -> 0 | K35: ='Respondent Assumptions'!M35 -> 0 | L35: ='Respondent Assumptions'!N35 -> 2500 | M35: 0 | N35: 0 | O35: 2227500 | P35: 0 | Q35: 0 | R35: 6187.5 | S35: 0 | T35: 0 | U35: 786616.875 | V35: 0 | W35: =S35+$V35 -> 0 | X35: =T35+$V35 -> 0 | Y35: =U35+$V35 -> 786616.875 | Z35: 1
A36: 1 | C36: ='Respondent Assumptions'!C36 -> Submit conferral request | D36: ='Respondent Assumptions'!F36 -> 3 | E36: ='Respondent Assumptions'!D36 -> 6 | F36: ='Respondent Assumptions'!E36 -> 0 | G36: 18 | H36: 2288.34 | I36: 0 | J36: ='Respondent Assumptions'!L36 -> 3 | K36: ='Respondent Assumptions'!M36 -> 3 | L36: ='Respondent Assumptions'!N36 -> 3 | M36: 9 | N36: 9 | O36: 9 | P36: 54 | Q36: 54 | R36: 54 | S36: 6865.02 | T36: 6865.02 | U36: 6865.02 | V36: 0 | W36: 6865.02 | X36: 6865.02 | Y36: 6865.02 | Z36: 1
C37: ='Respondent Assumptions'!C37 -> Provide certification to third party (conferee) | D37: ='Respondent Assumptions'!F37 -> 3 | E37: ='Respondent Assumptions'!D37 -> 2 | F37: ='Respondent Assumptions'!E37 -> 0 | G37: 6 | H37: 762.78 | I37: 0 | J37: ='Respondent Assumptions'!L37 -> 3 | K37: ='Respondent Assumptions'!M37 -> 3 | L37: ='Respondent Assumptions'!N37 -> 3 | M37: 9 | N37: 9 | O37: 9 | P37: 18 | Q37: 18 | R37: 18 | S37: 2288.34 | T37: 2288.34 | U37: 2288.34 | V37: 0 | W37: 2288.34 | X37: 2288.34 | Y37: 2288.34 | Z37: 3
C38: ='Respondent Assumptions'!C38 -> Provide certification to third party (conferrer) | D38: ='Respondent Assumptions'!F38 -> 4 | E38: ='Respondent Assumptions'!D38 -> 2 | F38: ='Respondent Assumptions'!E38 -> 0 | G38: 8 | H38: 1017.04 | I38: 0 | J38: ='Respondent Assumptions'!L38 -> 3 | K38: ='Respondent Assumptions'!M38 -> 3 | L38: ='Respondent Assumptions'!N38 -> 3 | M38: 12 | N38: 12 | O38: 12 | P38: 24 | Q38: 24 | R38: 24 | S38: 3051.12 | T38: 3051.12 | U38: 3051.12 | V38: 0 | W38: 3051.12 | X38: 3051.12 | Y38: 3051.12 | Z38: 3
C39: ='Respondent Assumptions'!C39 -> Maintain records | D39: ='Respondent Assumptions'!F39 -> 1 | E39: ='Respondent Assumptions'!D39 -> 0 | F39: ='Respondent Assumptions'!E39 -> 20 | G39: 20 | H39: 2004.6 | I39: 50 | J39: ='Respondent Assumptions'!L39 -> 3 | K39: ='Respondent Assumptions'!M39 -> 3 | L39: ='Respondent Assumptions'!N39 -> 3 | M39: 3 | N39: 3 | O39: 3 | P39: 60 | Q39: 60 | R39: 60 | S39: 6013.8 | T39: 6013.8 | U39: 6013.8 | V39: 150 | W39: 6163.8 | X39: 6163.8 | Y39: 6163.8 | Z39: 2
A40: 1 | B40: HFC Destroyer | C40: ='Respondent Assumptions'!C40 -> Submit one-time report | D40: ='Respondent Assumptions'!F40 -> 1 | E40: ='Respondent Assumptions'!D40 -> 100 | F40: ='Respondent Assumptions'!E40 -> 0 | G40: 100 | H40: 12713 | I40: 0 | J40: ='Respondent Assumptions'!L40 -> 1 | K40: ='Respondent Assumptions'!M40 -> 1 | L40: ='Respondent Assumptions'!N40 -> 1 | M40: 1 | N40: 1 | O40: 1 | P40: 100 | Q40: 100 | R40: 100 | S40: 12713 | T40: 12713 | U40: 12713 | V40: 0 | W40: 12713 | X40: 12713 | Y40: 12713 | Z40: 1
A41: 1 | C41: ='Respondent Assumptions'!C41 -> Submit annual second party report | D41: ='Respondent Assumptions'!F41 -> 1 | E41: ='Respondent Assumptions'!D41 -> 4 | F41: ='Respondent Assumptions'!E41 -> 0 | G41: 4 | H41: 508.52 | I41: 0 | J41: ='Respondent Assumptions'!L41 -> 10 | K41: ='Respondent Assumptions'!M41 -> 10 | L41: ='Respondent Assumptions'!N41 -> 10 | M41: 10 | N41: 10 | O41: 10 | P41: 40 | Q41: 40 | R41: 40 | S41: 5085.2 | T41: 5085.2 | U41: 5085.2 | V41: 0 | W41: 5085.2 | X41: 5085.2 | Y41: 5085.2 | Z41: 1
C42: ='Respondent Assumptions'!C42 -> Maintain records | D42: ='Respondent Assumptions'!F42 -> 1 | E42: ='Respondent Assumptions'!D42 -> 0 | F42: ='Respondent Assumptions'!E42 -> 20 | G42: 20 | H42: 2004.6 | I42: 50 | J42: ='Respondent Assumptions'!L42 -> 10 | K42: ='Respondent Assumptions'!M42 -> 10 | L42: ='Respondent Assumptions'!N42 -> 10 | M42: 10 | N42: 10 | O42: 10 | P42: 200 | Q42: 200 | R42: 200 | S42: 20046 | T42: 20046 | U42: 20046 | V42: 500 | W42: 20546 | X42: 20546 | Y42: 20546 | Z42: 2
C43: ='Respondent Assumptions'!C43 -> Provide destruction verification to third party | D43: ='Respondent Assumptions'!F43 -> 1 | E43: ='Respondent Assumptions'!D43 -> 2 | F43: ='Respondent Assumptions'!E43 -> 0 | G43: 2 | H43: 254.26 | I43: 0 | J43: ='Respondent Assumptions'!L43 -> 10 | K43: ='Respondent Assumptions'!M43 -> 10 | L43: ='Respondent Assumptions'!N43 -> 10 | M43: 10 | N43: 10 | O43: 10 | P43: 20 | Q43: 20 | R43: 20 | S43: 2542.6 | T43: 2542.6 | U43: 2542.6 | V43: 0 | W43: 2542.6 | X43: 2542.6 | Y43: 2542.6 | Z43: 3
C44: ='Respondent Assumptions'!C44 -> Provide proof of destruction to third party | D44: ='Respondent Assumptions'!F44 -> 1 | E44: ='Respondent Assumptions'!D44 -> 2 | F44: ='Respondent Assumptions'!E44 -> 0 | G44: 2 | H44: 254.26 | I44: 0 | J44: ='Respondent Assumptions'!L44 -> 10 | K44: ='Respondent Assumptions'!M44 -> 10 | L44: ='Respondent Assumptions'!N44 -> 10 | M44: 10 | N44: 10 | O44: 10 | P44: 20 | Q44: 20 | R44: 20 | S44: 2542.6 | T44: 2542.6 | U44: 2542.6 | V44: 0 | W44: 2542.6 | X44: 2542.6 | Y44: 2542.6 | Z44: 3
A45: 1 | B45: HFC Transformer | C45: ='Respondent Assumptions'!C45 -> Submit one-time report | D45: ='Respondent Assumptions'!F45 -> 1 | E45: ='Respondent Assumptions'!D45 -> 100 | F45: ='Respondent Assumptions'!E45 -> 0 | G45: 100 | H45: 12713 | I45: 0 | J45: ='Respondent Assumptions'!L45 -> 1 | K45: ='Respondent Assumptions'!M45 -> 1 | L45: ='Respondent Assumptions'!N45 -> 1 | M45: 1 | N45: 1 | O45: 1 | P45: 100 | Q45: 100 | R45: 100 | S45: 12713 | T45: 12713 | U45: 12713 | V45: 0 | W45: 12713 | X45: 12713 | Y45: 12713 | Z45: 1
A46: 1 | C46: ='Respondent Assumptions'!C46 -> Submit annual second party report | D46: ='Respondent Assumptions'!F46 -> 1 | E46: ='Respondent Assumptions'!D46 -> 4 | F46: ='Respondent Assumptions'!E46 -> 0 | G46: 4 | H46: 508.52 | I46: 0 | J46: ='Respondent Assumptions'!L46 -> 3 | K46: ='Respondent Assumptions'!M46 -> 3 | L46: ='Respondent Assumptions'!N46 -> 3 | M46: 3 | N46: 3 | O46: 3 | P46: 12 | Q46: 12 | R46: 12 | S46: 1525.56 | T46: 1525.56 | U46: 1525.56 | V46: 0 | W46: 1525.56 | X46: 1525.56 | Y46: 1525.56 | Z46: 1
C47: ='Respondent Assumptions'!C47 -> Maintain records | D47: ='Respondent Assumptions'!F47 -> 1 | E47: ='Respondent Assumptions'!D47 -> 0 | F47: ='Respondent Assumptions'!E47 -> 20 | G47: 20 | H47: 2004.6 | I47: 50 | J47: ='Respondent Assumptions'!L47 -> 3 | K47: ='Respondent Assumptions'!M47 -> 3 | L47: ='Respondent Assumptions'!N47 -> 3 | M47: 3 | N47: 3 | O47: 3 | P47: 60 | Q47: 60 | R47: 60 | S47: 6013.8 | T47: 6013.8 | U47: 6013.8 | V47: 150 | W47: 6163.8 | X47: 6163.8 | Y47: 6163.8 | Z47: 2
C48: ='Respondent Assumptions'!C48 -> Provide transformation verification to third party | D48: ='Respondent Assumptions'!F48 -> 1 | E48: ='Respondent Assumptions'!D48 -> 2 | F48: ='Respondent Assumptions'!E48 -> 0 | G48: 2 | H48: 254.26 | I48: 0 | J48: ='Respondent Assumptions'!L48 -> 3 | K48: ='Respondent Assumptions'!M48 -> 3 | L48: ='Respondent Assumptions'!N48 -> 3 | M48: 3 | N48: 3 | O48: 3 | P48: 6 | Q48: 6 | R48: 6 | S48: 762.78 | T48: 762.78 | U48: 762.78 | V48: 0 | W48: 762.78 | X48: 762.78 | Y48: 762.78 | Z48: 3
A49: 1 | B49: HFC Process Agent Use | C49: ='Respondent Assumptions'!C49 -> Submit one-time report | D49: ='Respondent Assumptions'!F49 -> 1 | E49: ='Respondent Assumptions'!D49 -> 100 | F49: ='Respondent Assumptions'!E49 -> 0 | G49: 100 | H49: 12713 | I49: 0 | J49: ='Respondent Assumptions'!L49 -> 1 | K49: ='Respondent Assumptions'!M49 -> 1 | L49: ='Respondent Assumptions'!N49 -> 1 | M49: 1 | N49: 1 | O49: 1 | P49: 100 | Q49: 100 | R49: 100 | S49: 12713 | T49: 12713 | U49: 12713 | V49: 0 | W49: 12713 | X49: 12713 | Y49: 12713 | Z49: 1
A50: 1 | C50: ='Respondent Assumptions'!C50 -> Submit annual report | D50: ='Respondent Assumptions'!F50 -> 1 | E50: ='Respondent Assumptions'!D50 -> 6 | F50: ='Respondent Assumptions'!E50 -> 0 | G50: 6 | H50: 762.78 | I50: 0 | J50: ='Respondent Assumptions'!L50 -> 4 | K50: ='Respondent Assumptions'!M50 -> 4 | L50: ='Respondent Assumptions'!N50 -> 4 | M50: 4 | N50: 4 | O50: 4 | P50: 24 | Q50: 24 | R50: 24 | S50: 3051.12 | T50: 3051.12 | U50: 3051.12 | V50: 0 | W50: 3051.12 | X50: 3051.12 | Y50: 3051.12 | Z50: 1
A51: 1 | B51: HFC Reclaimers | C51: ='Respondent Assumptions'!C51 -> Submit one-time report | D51: ='Respondent Assumptions'!F51 -> 1 | E51: ='Respondent Assumptions'!D51 -> 40 | F51: ='Respondent Assumptions'!E51 -> 0 | G51: 40 | H51: 5085.2 | I51: 0 | J51: ='Respondent Assumptions'!L51 -> 0 | K51: ='Respondent Assumptions'!M51 -> 0 | L51: ='Respondent Assumptions'!N51 -> 0 | M51: 0 | N51: 0 | O51: 0 | P51: 0 | Q51: 0 | R51: 0 | S51: 0 | T51: 0 | U51: 0 | V51: 0 | W51: 0 | X51: 0 | Y51: 0 | Z51: 1
A52: 1 | C52: ='Respondent Assumptions'!C52 -> Submit quarterly report | D52: ='Respondent Assumptions'!F52 -> 4 | E52: ='Respondent Assumptions'!D52 -> 9.4 | F52: ='Respondent Assumptions'!E52 -> 0 | G52: 37.6 | H52: 4780.088 | I52: 0 | J52: ='Respondent Assumptions'!L52 -> 31 | K52: ='Respondent Assumptions'!M52 -> 31 | L52: ='Respondent Assumptions'!N52 -> 31 | M52: 124 | N52: 124 | O52: 124 | P52: 1165.6 | Q52: 1165.6 | R52: 1165.6 | S52: 148182.728 | T52: 148182.728 | U52: 148182.728 | V52: 0 | W52: 148182.728 | X52: 148182.728 | Y52: 148182.728 | Z52: 1
C53: ='Respondent Assumptions'!C53 -> Submit annual inventory report (part of quarterly report) | D53: ='Respondent Assumptions'!F53 -> 1 | E53: ='Respondent Assumptions'!D53 -> 10 | F53: ='Respondent Assumptions'!E53 -> 0 | G53: 10 | H53: 1271.3 | I53: 0 | J53: ='Respondent Assumptions'!L53 -> 31 | K53: ='Respondent Assumptions'!M53 -> 31 | L53: ='Respondent Assumptions'!N53 -> 31 | M53: 31 | N53: 31 | O53: 31 | P53: 310 | Q53: 310 | R53: 310 | S53: 39410.3 | T53: 39410.3 | U53: 39410.3 | V53: 0 | W53: 39410.3 | X53: 39410.3 | Y53: 39410.3 | Z53: 1
C54: ='Respondent Assumptions'!C54 -> Maintain records | D54: ='Respondent Assumptions'!F54 -> 1 | E54: ='Respondent Assumptions'!D54 -> 0 | F54: ='Respondent Assumptions'!E54 -> 60 | G54: 60 | H54: 6013.8 | I54: 50 | J54: ='Respondent Assumptions'!L54 -> 31 | K54: ='Respondent Assumptions'!M54 -> 31 | L54: ='Respondent Assumptions'!N54 -> 31 | M54: 31 | N54: 31 | O54: 31 | P54: 1860 | Q54: 1860 | R54: 1860 | S54: 186427.8 | T54: 186427.8 | U54: 186427.8 | V54: 1550 | W54: 187977.8 | X54: 187977.8 | Y54: 187977.8 | Z54: 2
C55: ='Respondent Assumptions'!C55 -> Register with certification ID system | D55: ='Respondent Assumptions'!F55 -> 1 | E55: ='Respondent Assumptions'!D55 -> 0.5 | F55: ='Respondent Assumptions'!E55 -> 0 | G55: 0.5 | H55: 63.565 | I55: 0 | J55: ='Respondent Assumptions'!L55 -> 0 | K55: ='Respondent Assumptions'!M55 -> 31 | L55: ='Respondent Assumptions'!N55 -> 1 | M55: 0 | N55: 31 | O55: 1 | P55: 0 | Q55: 15.5 | R55: 0.5 | S55: 0 | T55: 1970.515 | U55: 63.565 | V55: 0 | W55: 0 | X55: 1970.515 | Y55: 63.565 | Z55: 1
C56: ='Respondent Assumptions'!C56 -> Enter data into certification ID system | D56: ='Respondent Assumptions'!F56 -> 69882 | E56: ='Respondent Assumptions'!D56 -> 0.005555555556 | F56: ='Respondent Assumptions'!E56 -> 0 | G56: 388.2333333 | H56: 49356.10367 | I56: 0 | J56: ='Respondent Assumptions'!L56 -> 0 | K56: ='Respondent Assumptions'!M56 -> 7.75 | L56: ='Respondent Assumptions'!N56 -> 31 | M56: 0 | N56: 541585.5 | O56: 2166342 | P56: 0 | Q56: 3008.808333 | R56: 12035.23333 | S56: 0 | T56: 382509.8034 | U56: 1530039.214 | V56: 0 | W56: 0 | X56: 382509.8034 | Y56: 1530039.214 | Z56: 1
B57: HFC Fillers and Packagers | C57: ='Respondent Assumptions'!C57 -> Register with certification ID system | D57: ='Respondent Assumptions'!F57 -> 1 | E57: ='Respondent Assumptions'!D57 -> 0.5 | F57: ='Respondent Assumptions'!E57 -> 0 | G57: 0.5 | H57: 63.565 | I57: 0 | J57: ='Respondent Assumptions'!L57 -> 0 | K57: ='Respondent Assumptions'!M57 -> 50 | L57: ='Respondent Assumptions'!N57 -> 1 | M57: 0 | N57: 50 | O57: 1 | P57: 0 | Q57: 25 | R57: 0.5 | S57: 0 | T57: 3178.25 | U57: 63.565 | V57: 0 | W57: =S57+$V57 -> 0 | X57: 3178.25 | Y57: 63.565 | Z57: 1
C58: ='Respondent Assumptions'!C58 -> Enter data into certification ID system | D58: ='Respondent Assumptions'!F58 -> 69882 | E58: ='Respondent Assumptions'!D58 -> 0.005555555556 | F58: ='Respondent Assumptions'!E58 -> 0 | G58: 388.2333333 | H58: 49356.10367 | I58: 0 | J58: ='Respondent Assumptions'!L58 -> 0 | K58: ='Respondent Assumptions'!M58 -> 12.5 | L58: ='Respondent Assumptions'!N58 -> 50 | M58: 0 | N58: 873525 | O58: 3494100 | P58: 0 | Q58: 4852.916667 | R58: 19411.66667 | S58: 0 | T58: 616951.2958 | U58: 2467805.183 | V58: 0 | W58: 0 | X58: 616951.2958 | Y58: 2467805.183 | Z58: 1
C59: ='Respondent Assumptions'!C59 -> Maintain records | D59: ='Respondent Assumptions'!F59 -> 1 | E59: ='Respondent Assumptions'!D59 -> 0 | F59: ='Respondent Assumptions'!E59 -> 20 | G59: 20 | H59: 2004.6 | I59: 50 | J59: ='Respondent Assumptions'!L59 -> 50 | K59: ='Respondent Assumptions'!M59 -> 50 | L59: ='Respondent Assumptions'!N59 -> 50 | M59: 50 | N59: 50 | O59: 50 | P59: 1000 | Q59: 1000 | R59: 1000 | S59: 100230 | T59: 100230 | U59: 100230 | V59: 2500 | W59: 102730 | X59: 102730 | Y59: 102730 | Z59: 2
A60: 1 | B60: HFC Fire Suppression Agent Recyclers | C60: ='Respondent Assumptions'!C60 -> Submit quarterly report | D60: ='Respondent Assumptions'!F60 -> 4 | E60: ='Respondent Assumptions'!D60 -> 9.4 | F60: ='Respondent Assumptions'!E60 -> 0 | G60: 37.6 | H60: 4780.088 | I60: 0 | J60: ='Respondent Assumptions'!L60 -> 4 | K60: ='Respondent Assumptions'!M60 -> 4 | L60: ='Respondent Assumptions'!N60 -> 4 | M60: 16 | N60: 16 | O60: 16 | P60: 150.4 | Q60: 150.4 | R60: 150.4 | S60: 19120.352 | T60: 19120.352 | U60: 19120.352 | V60: 0 | W60: 19120.352 | X60: 19120.352 | Y60: 19120.352 | Z60: 1
C61: ='Respondent Assumptions'!C61 -> Submit annual inventory report (part of quarterly report) | D61: ='Respondent Assumptions'!F61 -> 1 | E61: ='Respondent Assumptions'!D61 -> 10 | F61: ='Respondent Assumptions'!E61 -> 0 | G61: 10 | H61: 1271.3 | I61: 0 | J61: ='Respondent Assumptions'!L61 -> 4 | K61: ='Respondent Assumptions'!M61 -> 4 | L61: ='Respondent Assumptions'!N61 -> 4 | M61: 4 | N61: 4 | O61: 4 | P61: 40 | Q61: 40 | R61: 40 | S61: 5085.2 | T61: 5085.2 | U61: 5085.2 | V61: 0 | W61: 5085.2 | X61: 5085.2 | Y61: 5085.2 | Z61: 1
C62: ='Respondent Assumptions'!C62 -> Maintain records | D62: ='Respondent Assumptions'!F62 -> 1 | E62: ='Respondent Assumptions'!D62 -> 0 | F62: ='Respondent Assumptions'!E62 -> 40 | G62: 40 | H62: 4009.2 | I62: 50 | J62: ='Respondent Assumptions'!L62 -> 4 | K62: ='Respondent Assumptions'!M62 -> 4 | L62: ='Respondent Assumptions'!N62 -> 4 | M62: 4 | N62: 4 | O62: 4 | P62: 160 | Q62: 160 | R62: 160 | S62: 16036.8 | T62: 16036.8 | U62: 16036.8 | V62: 200 | W62: 16236.8 | X62: 16236.8 | Y62: 16236.8 | Z62: 2
C63: ='Respondent Assumptions'!C63 -> Register with certification ID system | D63: ='Respondent Assumptions'!F63 -> 1 | E63: ='Respondent Assumptions'!D63 -> 0.5 | F63: ='Respondent Assumptions'!E63 -> 0 | G63: 0.5 | H63: 63.565 | I63: 0 | J63: ='Respondent Assumptions'!L63 -> 0 | K63: ='Respondent Assumptions'!M63 -> 4 | L63: ='Respondent Assumptions'!N63 -> 1 | M63: 0 | N63: 4 | O63: 1 | P63: 0 | Q63: 2 | R63: 0.5 | S63: 0 | T63: 254.26 | U63: 63.565 | V63: 0 | W63: 0 | X63: 254.26 | Y63: 63.565 | Z63: 1
C64: ='Respondent Assumptions'!C64 -> Enter data into certification ID system | D64: ='Respondent Assumptions'!F64 -> 69882 | E64: ='Respondent Assumptions'!D64 -> 0.005555555556 | F64: ='Respondent Assumptions'!E64 -> 0 | G64: 388.2333333 | H64: 49356.10367 | I64: 0 | J64: ='Respondent Assumptions'!L64 -> 0 | K64: ='Respondent Assumptions'!M64 -> 1 | L64: ='Respondent Assumptions'!N64 -> 4 | M64: 0 | N64: 69882 | O64: 279528 | P64: 0 | Q64: 388.2333333 | R64: 1552.933333 | S64: 0 | T64: 49356.10367 | U64: 197424.4147 | V64: 0 | W64: 0 | X64: 49356.10367 | Y64: 197424.4147 | Z64: 1
B65: HFC Transfers | C65: ='Respondent Assumptions'!C65 -> Submit inter-company transfer request | D65: ='Respondent Assumptions'!F65 -> 3 | E65: ='Respondent Assumptions'!D65 -> 6 | F65: ='Respondent Assumptions'!E65 -> 0 | G65: 18 | H65: 2288.34 | I65: 0 | J65: ='Respondent Assumptions'!L65 -> 11 | K65: ='Respondent Assumptions'!M65 -> 11 | L65: ='Respondent Assumptions'!N65 -> 11 | M65: 33 | N65: 33 | O65: 33 | P65: 198 | Q65: 198 | R65: 198 | S65: 25171.74 | T65: 25171.74 | U65: 25171.74 | V65: 0 | W65: 25171.74 | X65: 25171.74 | Y65: 25171.74 | Z65: 1
C66: ='Respondent Assumptions'!C66 -> Submit request to transfer from a person in a foreign country | D66: ='Respondent Assumptions'!F66 -> 1 | E66: ='Respondent Assumptions'!D66 -> 6 | F66: ='Respondent Assumptions'!E66 -> 0 | G66: =D66*(E66+F66) -> 6 | H66: =(D66*E66*$B$80)+(D66*F66*$B$81) -> 762.78 | I66: 0 | J66: ='Respondent Assumptions'!L66 -> 1 | K66: ='Respondent Assumptions'!M66 -> 1 | L66: ='Respondent Assumptions'!N66 -> 1 | M66: =$D66*J66 -> 1 | N66: =$D66*K66 -> 1 | O66: =$D66*L66 -> 1 | P66: =J66*$G66 -> 6 | Q66: =K66*$G66 -> 6 | R66: =L66*$G66 -> 6 | S66: =$H66*J66 -> 762.78 | T66: =$H66*K66 -> 762.78 | U66: =$H66*L66 -> 762.78 | V66: =I66*J66 -> 0 | W66: 762.78 | X66: 762.78 | Y66: 762.78 | Z66: 1
C67: ='Respondent Assumptions'!C67 -> Submit request to transfer to a person in a foreign country | D67: ='Respondent Assumptions'!F67 -> 1 | E67: ='Respondent Assumptions'!D67 -> 6 | F67: ='Respondent Assumptions'!E67 -> 0 | G67: 6 | H67: 762.78 | I67: 0 | J67: ='Respondent Assumptions'!L67 -> 1 | K67: ='Respondent Assumptions'!M67 -> 1 | L67: ='Respondent Assumptions'!N67 -> 1 | M67: 1 | N67: 1 | O67: 1 | P67: 6 | Q67: 6 | R67: 6 | S67: 762.78 | T67: 762.78 | U67: 762.78 | V67: 0 | W67: =S67+$V67 -> 762.78 | X67: =T67+$V67 -> 762.78 | Y67: =U67+$V67 -> 762.78 | Z67: 1
C68: ='Respondent Assumptions'!C68 -> Submit request to sell/transfer HFCs produced/imported with application-specific allowances | D68: ='Respondent Assumptions'!F68 -> 1 | E68: ='Respondent Assumptions'!D68 -> 6 | F68: ='Respondent Assumptions'!E68 -> 0 | G68: 6 | H68: 762.78 | I68: 0 | J68: ='Respondent Assumptions'!L68 -> 5 | K68: ='Respondent Assumptions'!M68 -> 5 | L68: ='Respondent Assumptions'!N68 -> 5 | M68: 5 | N68: 5 | O68: 5 | P68: 30 | Q68: 30 | R68: 30 | S68: 3813.9 | T68: 3813.9 | U68: 3813.9 | V68: 0 | W68: 3813.9 | X68: 3813.9 | Y68: 3813.9 | Z68: 1
A69: 1 | B69: Application-Specific Allowance Holders | C69: ='Respondent Assumptions'!C69 -> Submit biannual report | D69: ='Respondent Assumptions'!F69 -> 2 | E69: ='Respondent Assumptions'!D69 -> 6 | F69: ='Respondent Assumptions'!E69 -> 0 | G69: 12 | H69: 1525.56 | I69: 0 | J69: ='Respondent Assumptions'!L69 -> 46 | K69: ='Respondent Assumptions'!M69 -> 46 | L69: ='Respondent Assumptions'!N69 -> 46 | M69: 92 | N69: 92 | O69: 92 | P69: 552 | Q69: 552 | R69: 552 | S69: 70175.76 | T69: 70175.76 | U69: 70175.76 | V69: 0 | W69: 70175.76 | X69: 70175.76 | Y69: 70175.76 | Z69: 1
C70: ='Respondent Assumptions'!C70 -> Submit annual report (part of biannual report) | D70: ='Respondent Assumptions'!F70 -> 1 | E70: ='Respondent Assumptions'!D70 -> 6 | F70: ='Respondent Assumptions'!E70 -> 0 | G70: 6 | H70: 762.78 | I70: 0 | J70: ='Respondent Assumptions'!L70 -> 54 | K70: ='Respondent Assumptions'!M70 -> 54 | L70: ='Respondent Assumptions'!N70 -> 54 | M70: 54 | N70: 54 | O70: 54 | P70: 324 | Q70: 324 | R70: 324 | S70: 41190.12 | T70: 41190.12 | U70: 41190.12 | V70: 0 | W70: 41190.12 | X70: 41190.12 | Y70: 41190.12 | Z70: 1
A71: 1 | C71: ='Respondent Assumptions'!C71 -> Submit conferral request | D71: ='Respondent Assumptions'!F71 -> 2 | E71: ='Respondent Assumptions'!D71 -> 6 | F71: ='Respondent Assumptions'!E71 -> 0 | G71: 12 | H71: =(D71*E71*$B$80)+(D71*F71*$B$81) -> 1525.56 | I71: 0 | J71: ='Respondent Assumptions'!L71 -> 46 | K71: ='Respondent Assumptions'!M71 -> 46 | L71: ='Respondent Assumptions'!N71 -> 46 | M71: 92 | N71: 92 | O71: 92 | P71: 552 | Q71: 552 | R71: 552 | S71: 70175.76 | T71: 70175.76 | U71: 70175.76 | V71: 0 | W71: 70175.76 | X71: 70175.76 | Y71: 70175.76 | Z71: 1
C72: ='Respondent Assumptions'!C72 -> Provide certification to third party (conferee) | D72: ='Respondent Assumptions'!F72 -> 2 | E72: ='Respondent Assumptions'!D72 -> 2 | F72: ='Respondent Assumptions'!E72 -> 0 | G72: 4 | H72: 508.52 | I72: 0 | J72: ='Respondent Assumptions'!L72 -> 46 | K72: ='Respondent Assumptions'!M72 -> 46 | L72: ='Respondent Assumptions'!N72 -> 46 | M72: 92 | N72: 92 | O72: 92 | P72: 184 | Q72: 184 | R72: 184 | S72: 23391.92 | T72: 23391.92 | U72: 23391.92 | V72: 0 | W72: 23391.92 | X72: 23391.92 | Y72: 23391.92 | Z72: 3
C73: ='Respondent Assumptions'!C73 -> Maintain records | D73: ='Respondent Assumptions'!F73 -> 1 | E73: ='Respondent Assumptions'!D73 -> 0 | F73: ='Respondent Assumptions'!E73 -> 80 | G73: 80 | H73: 8018.4 | I73: 50 | J73: ='Respondent Assumptions'!L73 -> 46 | K73: ='Respondent Assumptions'!M73 -> 46 | L73: ='Respondent Assumptions'!N73 -> 46 | M73: 46 | N73: 46 | O73: 46 | P73: 3680 | Q73: 3680 | R73: 3680 | S73: 368846.4 | T73: 368846.4 | U73: 368846.4 | V73: 2300 | W73: 371146.4 | X73: 371146.4 | Y73: 371146.4 | Z73: 2
B74: Third Party Audits | C74: ='Respondent Assumptions'!C74 -> Submit annual audit report | D74: ='Respondent Assumptions'!F74 -> 1 | E74: ='Respondent Assumptions'!D74 -> 40 | F74: ='Respondent Assumptions'!E74 -> 0 | G74: 40 | H74: 5085.2 | I74: ='Respondent Assumptions'!AD5 -> 6239.2 | J74: ='Respondent Assumptions'!L74 -> 162 | K74: ='Respondent Assumptions'!M74 -> 162 | L74: ='Respondent Assumptions'!N74 -> 162 | M74: 162 | N74: 162 | O74: 162 | P74: 6480 | Q74: 6480 | R74: 6480 | S74: 823802.4 | T74: 823802.4 | U74: 823802.4 | V74: 1010750.4 | W74: =S74+$V74 -> 1834552.8 | X74: =T74+$V74 -> 1834552.8 | Y74: =U74+$V74 -> 1834552.8 | Z74: 1
B75: Annual Total | M75: =SUM(M5:M74) -> 10465.75 | N75: 1497691.5 | O75: 8190087 | P75: 37615.5 | Q75: 50328.95833 | R75: 86225.33333 | S75: 4304852.515 | T75: 5921114.473 | U75: 10484620.63 | V75: 1028100.4 | W75: 5332952.915 | X75: 6949214.873 | Y75: 11512721.03
B76: 3 Year Total | M76: =SUM(M75:O75) -> 9698244.25 | P76: =SUM(P75:R75) -> 174169.7917 | S76: =SUM(S75:U75) -> 20710587.61 | V76: =V75*3 -> 3084301.2 | W76: =SUM(W75:Y75) -> 23794888.81
B77: Annual Average | M77: =AVERAGE(M75:O75) -> 3232748.083 | P77: =AVERAGE(P75:R75) -> 58056.59722 | S77: =AVERAGE(S75:U75) -> 6903529.205 | V77: =V75 -> 1028100.4 | W77: =AVERAGE(W75:Y75) -> 7931629.605
B79: Respondent Burden
B80: =ROUND(60.54*2.1,2) -> 127.13 | C80: Hourly Labor Rate - Technical Staff
B81: =ROUND(47.73*2.1,2) -> 100.23 | C81: Hourly Labor Rate - Clerical Staff

Sheet Incremental Costs
A1: Respondent Type | B1: Activity | C1: Responses per Respondent per Year | D1: Incremental Technical Hours per Response | E1: Incremental Clerical Hours per Response | F1: Total Incremental Hours per Respondent per Year | G1: Incremental Labor Cost per Respondent per Year | H1: Incremental O&M Costs per Respondent per Year | I1: Respondents per Activity per Year | L1: Total Responses per Year | O1: Total Incremental Hours per Year | R1: Total Incremental Labor Cost per Year | U1: Total Incremental O&M Costs per Year | V1: Total Incremental Costs per Year
I2: Y1 | J2: Y2 | K2: Y3 | L2: Y1 | M2: Y2 | N2: Y3 | O2: Y1 | P2: Y2 | Q2: Y3 | R2: Y1 | S2: Y2 | T2: Y3 | V2: Y1 | W2: Y2 | X2: Y3
A3: HFC Fire Suppression Agent Recyclers | B3: Maintain records | C3: 1 | E3: 20 | F3: =C3*(D3+E3) -> 20 | G3: =(C3*D3*'Respondent Burden - ICR'!$B$80)+(C3*E3*'Respondent Burden - ICR'!$B$81) -> 2004.6 | H3: 0 | I3: ='Respondent Burden - ICR'!J62 -> 4 | J3: ='Respondent Burden - ICR'!K62 -> 4 | K3: ='Respondent Burden - ICR'!L62 -> 4 | L3: =$C3*I3 -> 4 | M3: =$C3*J3 -> 4 | N3: 4 | O3: =I3*$F3 -> 80 | P3: =J3*$F3 -> 80 | Q3: 80 | R3: =$G3*I3 -> 8018.4 | S3: =$G3*J3 -> 8018.4 | T3: 8018.4 | U3: =H3*I3 -> 0 | V3: =R3+$U3 -> 8018.4 | W3: =S3+$U3 -> 8018.4 | X3: =T3+$U3 -> 8018.4
A4: HFC Importer | B4: Maintain records | C4: 1 | E4: 20 | F4: =C4*(D4+E4) -> 20 | G4: =(C4*D4*'Respondent Burden - ICR'!$B$80)+(C4*E4*'Respondent Burden - ICR'!$B$81) -> 2004.6 | H4: 0 | I4: ='Respondent Burden - ICR'!J16 -> 75 | J4: ='Respondent Burden - ICR'!K16 -> 75 | K4: ='Respondent Burden - ICR'!L16 -> 75 | L4: =$C4*I4 -> 75 | M4: =$C4*J4 -> 75 | N4: =$C4*K4 -> 75 | O4: =I4*$F4 -> 1500 | P4: =J4*$F4 -> 1500 | Q4: =K4*$F4 -> 1500 | R4: =$G4*I4 -> 150345 | S4: =$G4*J4 -> 150345 | T4: =$G4*K4 -> 150345 | U4: =H4*I4 -> 0 | V4: =R4+$U4 -> 150345 | W4: =S4+$U4 -> 150345 | X4: =T4+$U4 -> 150345
A5: HFC Importer | B5: Submit Importer of Record annual report | C5: 1 | D5: 2 | F5: 2 | G5: =(C5*D5*'Respondent Burden - ICR'!$B$80)+(C5*E5*'Respondent Burden - ICR'!$B$81) -> 254.26 | H5: 0 | I5: ='Respondent Burden - ICR'!J25 -> 75 | J5: ='Respondent Burden - ICR'!K25 -> 75 | K5: ='Respondent Burden - ICR'!L25 -> 75 | L5: 75 | M5: 75 | N5: 75 | O5: 150 | P5: 150 | Q5: 150 | R5: 19069.5 | S5: 19069.5 | T5: 19069.5 | U5: 0 | V5: 19069.5 | W5: 19069.5 | X5: 19069.5
A6: HFC Exporter | B6: Maintain records | C6: 1 | E6: 20 | F6: =C6*(D6+E6) -> 20 | G6: =(C6*D6*'Respondent Burden - ICR'!$B$80)+(C6*E6*'Respondent Burden - ICR'!$B$81) -> 2004.6 | H6: ='Respondent Burden - ICR'!I31 -> 50 | I6: ='Respondent Burden - ICR'!J31 -> 4 | J6: ='Respondent Burden - ICR'!K31 -> 4 | K6: ='Respondent Burden - ICR'!L31 -> 4 | L6: =$C6*I6 -> 4 | M6: =$C6*J6 -> 4 | N6: =$C6*K6 -> 4 | O6: =I6*$F6 -> 80 | P6: =J6*$F6 -> 80 | Q6: =K6*$F6 -> 80 | R6: =$G6*I6 -> 8018.4 | S6: =$G6*J6 -> 8018.4 | T6: =$G6*K6 -> 8018.4 | U6: =H6*I6 -> 200 | V6: =R6+$U6 -> 8218.4 | W6: =S6+$U6 -> 8218.4 | X6: =T6+$U6 -> 8218.4
A7: HFC Producer | B7: Maintain records | C7: 1 | E7: 20 | F7: 20 | G7: =(C7*D7*'Respondent Burden - ICR'!$B$80)+(C7*E7*'Respondent Burden - ICR'!$B$81) -> 2004.6 | H7: 0 | I7: ='Respondent Burden - ICR'!J8 -> 10 | J7: ='Respondent Burden - ICR'!K8 -> 10 | K7: ='Respondent Burden - ICR'!L8 -> 10 | L7: 10 | M7: 10 | N7: 10 | O7: 200 | P7: 200 | Q7: 200 | R7: 20046 | S7: 20046 | T7: 20046 | U7: 0 | V7: 20046 | W7: 20046 | X7: 20046
A8: HFC Reclaimers | B8: Maintain records | C8: 1 | E8: 20 | F8: 20 | G8: =(C8*D8*'Respondent Burden - ICR'!$B$80)+(C8*E8*'Respondent Burden - ICR'!$B$81) -> 2004.6 | H8: 0 | I8: ='Respondent Burden - ICR'!J54 -> 31 | J8: ='Respondent Burden - ICR'!K54 -> 31 | K8: ='Respondent Burden - ICR'!L54 -> 31 | L8: 31 | M8: 31 | N8: 31 | O8: 620 | P8: 620 | Q8: 620 | R8: 62142.6 | S8: 62142.6 | T8: 62142.6 | U8: 0 | V8: 62142.6 | W8: 62142.6 | X8: 62142.6
A9: HFC Fillers and Packagers | B9: Maintain records | C9: 1 | E9: 20 | F9: 20 | G9: =(C9*D9*'Respondent Burden - ICR'!$B$80)+(C9*E9*'Respondent Burden - ICR'!$B$81) -> 2004.6 | H9: ='Respondent Burden - ICR'!I59 -> 50 | I9: ='Respondent Burden - ICR'!J59 -> 50 | J9: ='Respondent Burden - ICR'!K59 -> 50 | K9: ='Respondent Burden - ICR'!L59 -> 50 | L9: 50 | M9: 50 | N9: 50 | O9: 1000 | P9: 1000 | Q9: 1000 | R9: 100230 | S9: 100230 | T9: 100230 | U9: =H9*I9 -> 2500 | V9: 102730 | W9: 102730 | X9: 102730
V10: =SUM(V3:V9) -> 370569.9 | W10: =SUM(W3:W9) -> 370569.9 | X10: 370569.9

Sheet Summary
B2: Prior ICR (Framework Rule)
B3: Year | C3: Total Responses | D3: Total Hours | E3: Total Labor Costs | F3: Total O&M Costs | G3: Total Costs
B5: Year 1 (2022) | C5: ='[1]RIA Burden Summary'!B3 -> 12767 | D5: ='[1]RIA Burden Summary'!C3 -> 91334.8 | E5: ='[1]RIA Burden Summary'!D3 -> 10310605.16 | F5: ='[1]RIA Burden Summary'!E3 -> 2737392 | G5: ='[1]RIA Burden Summary'!F3 -> 13047997.16
B6: Year 2 (2023) | C6: ='[1]RIA Burden Summary'!B4 -> 12245 | D6: ='[1]RIA Burden Summary'!C4 -> 78904.8 | E6: ='[1]RIA Burden Summary'!D4 -> 8791659.16 | F6: ='[1]RIA Burden Summary'!E4 -> 2737392 | G6: ='[1]RIA Burden Summary'!F4 -> 11529051.16
B7: Year 3 (2024) | C7: ='[1]RIA Burden Summary'!B5 -> 13314.5 | D7: ='[1]RIA Burden Summary'!C5 -> 80553.3 | E7: ='[1]RIA Burden Summary'!D5 -> 8993105.86 | F7: ='[1]RIA Burden Summary'!E5 -> 2737392 | G7: ='[1]RIA Burden Summary'!F5 -> 11730497.86
B8: Year 4 (2025) | C8: ='[1]RIA Burden Summary'!B6 -> 1500345 | D8: ='[1]RIA Burden Summary'!C6 -> 93159.8 | E8: ='[1]RIA Burden Summary'!D6 -> 10533620.16 | F8: ='[1]RIA Burden Summary'!E6 -> 2737392 | G8: ='[1]RIA Burden Summary'!F6 -> 13271012.16
B9: Year 5 (2026) | C9: ='[1]RIA Burden Summary'!B7 -> 8192720 | D9: ='[1]RIA Burden Summary'!C7 -> 129034.8 | E9: ='[1]RIA Burden Summary'!D7 -> 14917545.16 | F9: ='[1]RIA Burden Summary'!E7 -> 2737392 | G9: ='[1]RIA Burden Summary'!F7 -> 17654937.16
B10: Year 6 (2027) | C10: ='[1]RIA Burden Summary'!B8 -> 14865420 | D10: ='[1]RIA Burden Summary'!C8 -> 142697.3 | E10: ='[1]RIA Burden Summary'!D8 -> 16587102.66 | F10: ='[1]RIA Burden Summary'!E8 -> 2737392 | G10: ='[1]RIA Burden Summary'!F8 -> 19324494.66
B11: Year 7 (2028) | C11: ='[1]RIA Burden Summary'!B9 -> 14865420 | D11: ='[1]RIA Burden Summary'!C9 -> 142697.3 | E11: ='[1]RIA Burden Summary'!D9 -> 16587102.66 | F11: ='[1]RIA Burden Summary'!E9 -> 2737392 | G11: ='[1]RIA Burden Summary'!F9 -> 19324494.66
B13: Prior ICR (Framework Rule) - ADJUSTED
B14: Year | C14: Total Responses | D14: Total Hours | E14: Total Labor Costs | F14: Total O&M Costs | G14: Total Costs
B16: Year 1 (2022) | C16: ='[2]RIA Burden Summary'!B3 -> 9701 | D16: ='[2]RIA Burden Summary'!C3 -> 37225.5 | E16: ='[2]RIA Burden Summary'!D3 -> 4348883.815 | F16: ='[2]RIA Burden Summary'!E3 -> 1025400.4 | G16: ='[2]RIA Burden Summary'!F3 -> 5374284.215
B17: Year 2 (2023) | C17: ='[2]RIA Burden Summary'!B4 -> 9508 | D17: ='[2]RIA Burden Summary'!C4 -> 32455.5 | E17: ='[2]RIA Burden Summary'!D4 -> 3742473.715 | F17: ='[2]RIA Burden Summary'!E4 -> 1025400.4 | G17: ='[2]RIA Burden Summary'!F4 -> 4767874.115
B18: Year 3 (2024) | C18: ='[2]RIA Burden Summary'!B5 -> 10336.75 | D18: ='[2]RIA Burden Summary'!C5 -> 33985.5 | E18: ='[2]RIA Burden Summary'!D5 -> 3936982.615 | F18: ='[2]RIA Burden Summary'!E5 -> 1025400.4 | G18: ='[2]RIA Burden Summary'!F5 -> 4962383.015
B19: Year 4 (2025) | C19: ='[2]RIA Burden Summary'!B6 -> 1497562.5 | D19: ='[2]RIA Burden Summary'!C6 -> 46698.95833 | E19: ='[2]RIA Burden Summary'!D6 -> 5553244.573 | F19: ='[2]RIA Burden Summary'!E6 -> 1025400.4 | G19: ='[2]RIA Burden Summary'!F6 -> 6578644.973
B20: Year 5 (2026) | C20: ='[2]RIA Burden Summary'!B7 -> 8189958 | D20: ='[2]RIA Burden Summary'!C7 -> 82595.33333 | E20: ='[2]RIA Burden Summary'!D7 -> 10116750.73 | F20: ='[2]RIA Burden Summary'!E7 -> 1025400.4 | G20: ='[2]RIA Burden Summary'!F7 -> 11142151.13
B21: Year 6 (2027) | C21: ='[2]RIA Burden Summary'!B8 -> 14862658 | D21: ='[2]RIA Burden Summary'!C8 -> 96257.83333 | E21: ='[2]RIA Burden Summary'!D8 -> 11853664.35 | F21: ='[2]RIA Burden Summary'!E8 -> 1025400.4 | G21: ='[2]RIA Burden Summary'!F8 -> 12879064.75
B22: Year 7 (2028) | C22: ='[2]RIA Burden Summary'!B9 -> 14862658 | D22: ='[2]RIA Burden Summary'!C9 -> 96257.83333 | E22: ='[2]RIA Burden Summary'!D9 -> 11853664.35 | F22: ='[2]RIA Burden Summary'!E9 -> 1025400.4 | G22: ='[2]RIA Burden Summary'!F9 -> 12879064.75
B24: This ICR
B25: Year | C25: Total Responses | D25: Total Hours | E25: Total Labor Costs | F25: Total O&M Costs | G25: Total Costs
B27: Year 1 (2024) | C27: ='Respondent Burden - ICR'!AC5 -> 10465.75 | D27: ='Respondent Burden - ICR'!AD5 -> 37615.5 | E27: ='Respondent Burden - ICR'!AE5 -> 4304852.515 | F27: ='Respondent Burden - ICR'!AF5 -> 1028100.4 | G27: ='Respondent Burden - ICR'!AG5 -> 5332952.915
B28: Year 2 (2025) | C28: ='Respondent Burden - ICR'!AC6 -> 1497691.5 | D28: ='Respondent Burden - ICR'!AD6 -> 50328.95833 | E28: ='Respondent Burden - ICR'!AE6 -> 5921114.473 | F28: ='Respondent Burden - ICR'!AF6 -> 1028100.4 | G28: ='Respondent Burden - ICR'!AG6 -> 6949214.873
B29: Year 3 (2026) | C29: ='Respondent Burden - ICR'!AC7 -> 8190087 | D29: ='Respondent Burden - ICR'!AD7 -> 86225.33333 | E29: ='Respondent Burden - ICR'!AE7 -> 10484620.63 | F29: ='Respondent Burden - ICR'!AF7 -> 1028100.4 | G29: ='Respondent Burden - ICR'!AG7 -> 11512721.03
B30: Annual Average | C30: ='Respondent Burden - ICR'!AC8 -> 3232748.083 | D30: ='Respondent Burden - ICR'!AD8 -> 58056.59722 | E30: ='Respondent Burden - ICR'!AE8 -> 6903529.205 | F30: ='Respondent Burden - ICR'!AF8 -> 1028100.4 | G30: ='Respondent Burden - ICR'!AG8 -> 7931629.605
B32: Difference relative to Adjusted Prior ICR
B33: Year | C33: Total Responses | D33: Total Hours | E33: Total Labor Costs | F33: Total O&M Costs | G33: Total Costs
B35: Year 1 (2024) | C35: =C27-C18 -> 129 | D35: 3630 | E35: 367869.9 | F35: 2700 | G35: 370569.9
B36: Year 2 (2025) | C36: 129 | D36: 3630 | E36: 367869.9 | F36: 2700 | G36: 370569.9
B37: Year 3 (2026) | C37: 129 | D37: 3630 | E37: 367869.9 | F37: 2700 | G37: 370569.9

Sheet Agency Assumptions
A1: Agency Assumptions
B4: Activity | C4: Managerial Hours per activity | D4: Technical Hours per activity | E4: Clerical Hours per activity | F4: Contractor Hours per activity | G4: Source
B5: Develop and Maintain a Certification ID Tracking System | C5: 120 | D5: 3000 | E5: 0 | F5: 12000 | G5: Based on input from EPA
B6: Notify Submitters of Baseline Allowances | C6: 0.1 | D6: 1 | E6: 0 | F6: 1 | G6: Based on ODS ICR and input from EPA
B7: Review Data for Reporting Completeness and Compliance | C7: 0 | D7: 0.33 | E7: 0 | F7: 0.5 | G7: Based on ODS ICR, input from EPA, and HFC reporting experience
B8: Process Transfer Reports | C8: 0.1 | D8: 0.5 | E8: 0 | F8: 0.5 | G8: Based on ODS ICR
B9: Review Petitions to Import HFCs | C9: 0.1 | D9: 1 | E9: 0 | F9: 0.5 | G9: Based on ODS ICR and input from EPA
B10: Review Importer of Record Reports | C10: 0.1 | D10: 1 | E10: 0 | F10: 0
B11: Review Third-Party Audits | C11: 0.1 | D11: 2 | E11: 0 | F11: 4 | G11: Based on input from EPA
B12: Provide Reporting Guidance | C12: 0 | D12: 2 | E12: 0 | F12: 2 | G12: Based on ODS ICR plus an increase since new program
B13: Conduct Stakeholder Outreach Efforts | C13: 4 | D13: 60 | E13: 0 | F13: 120 | G13: Based on ODS ICR plus an increase since new program
B14: Maintain the Data Tracking System | C14: 40 | D14: 750 | E14: 0 | F14: 1800 | G14: Based on input from EPA
B15: Review Import Data Submitted in ACE | C15: 0.01 | D15: 0.25 | E15: 0 | F15: 0.1 | G15: Based on input from EPA
B16: Conduct Compliance Monitoring Activities | C16: 120 | D16: 2500 | E16: 0 | F16: 750 | G16: Based on input from EPA
B17: Ensure Non-Exceedance of AIM Act Limits | C17: 20 | D17: 80 | E17: 0 | F17: 80 | G17: Based on ODS ICR and input from EPA
B19: Activity | C19: Number of Activities | F19: Source
C20: Y1 | D20: Y2 | E20: Y3
B21: =B5 -> Develop and Maintain a Certification ID Tracking System | C21: 1 | D21: 1 | E21: 0.75 | F21: Assumes development will be complete after year 2
B22: Notify Submitters of Baseline Allowances | C22: ='Respondent Burden - ICR'!J6+'Respondent Burden - ICR'!J14 -> 85 | D22: ='Respondent Burden - ICR'!K6+'Respondent Burden - ICR'!K14 -> 85 | E22: ='Respondent Burden - ICR'!L6+'Respondent Burden - ICR'!L14 -> 85 | F22: Equals the number of producers + importers
B23: Review Data for Reporting Completeness and Compliance | C23: =SUMIF('Respondent Burden - ICR'!$A$5:$A$74,"1",'Respondent Burden - ICR'!M5:M74) -> 1151 | D23: =SUMIF('Respondent Burden - ICR'!$A$5:$A$74,"1",'Respondent Burden - ICR'!N5:N74) -> 1151 | E23: =SUMIF('Respondent Burden - ICR'!$A$5:$A$74,"1",'Respondent Burden - ICR'!O5:O74) -> 1151 | F23: Equals the number of one-time reports, producer, importer, exporter, transformation, destruction, process agent, RACA, and application-specific allowance holder reports received per year
B24: Process Transfer Reports | C24: =SUM('Respondent Burden - ICR'!M65:M68) -> 40 | D24: =SUM('Respondent Burden - ICR'!N65:N68) -> 40 | E24: =SUM('Respondent Burden - ICR'!O65:O68) -> 40 | F24: Equals the number of trade reports received per year
B25: Review Petitions to Import HFCs | C25: ='Respondent Burden - ICR'!M19+'Respondent Burden - ICR'!M20 -> 94 | D25: ='Respondent Burden - ICR'!N19+'Respondent Burden - ICR'!N20 -> 94 | E25: ='Respondent Burden - ICR'!O19+'Respondent Burden - ICR'!O20 -> 94 | F25: Equals the number of petitions to import for destruction received per year
B26: Review Importer of Record Reports | C26: ='Respondent Burden - ICR'!J14 -> 75 | D26: ='Respondent Burden - ICR'!K14 -> 75 | E26: ='Respondent Burden - ICR'!L14 -> 75 | F26: Equals the maximum number of importers
B27: =B11 -> Review Third-Party Audits | C27: ='Respondent Burden - ICR'!M74 -> 162 | D27: ='Respondent Burden - ICR'!N74 -> 162 | E27: ='Respondent Burden - ICR'!O74 -> 162
B28: Provide Reporting Guidance | C28: 40 | D28: =C28 -> 40 | E28: =C28 -> 40 | F28: Based on ODS ICR
B29: Conduct Stakeholder Outreach Efforts | C29: 1 | D29: 1 | E29: 1
B30: Maintain the Data Tracking System | C30: 1 | D30: 1 | E30: 1
B31: Review Import Data Submitted in ACE | C31: ='Respondent Burden - ICR'!M19 -> 84 | D31: ='Respondent Burden - ICR'!N19 -> 84 | E31: ='Respondent Burden - ICR'!O19 -> 84 | F31: Based on current import level and EPA estimated effort
B32: Conduct Compliance Monitoring Activities | C32: 2 | D32: 2 | E32: 2 | F32: imports and exports
B33: Ensure Non-Exceedance of AIM Act Limits | C33: 1 | D33: 1 | E33: 1

Sheet Agency Burden
A1: Agency Burden
B3: Activity | C3: Managerial Hours per Activity | D3: Technical Hours per Activity | E3: Clerical Hours per Activity | F3: Contractor Hours per Activity | G3: Number of Activities | J3: Total Hours | N3: Managerial Cost | Q3: Technical Cost | T3: Clerical Cost | W3: Contractor Cost | Z3: Total Cost | AD3: Year | AE3: Total Hours | AF3: Total Costs
G4: Y1 | H4: Y2 | I4: Y3 | J4: Y1 | K4: Y2 | L4: Y3 | N4: Y1 | O4: Y2 | P4: Y3 | Q4: Y1 | R4: Y2 | S4: Y3 | T4: Y1 | U4: Y2 | V4: Y3 | W4: Y1 | X4: Y2 | Y4: Y3 | Z4: Y1 | AA4: Y2 | AB4: Y3
B5: ='Agency Assumptions'!B5 -> Develop and Maintain a Certification ID Tracking System | C5: ='Agency Assumptions'!C5 -> 120 | D5: ='Agency Assumptions'!D5 -> 3000 | E5: ='Agency Assumptions'!E5 -> 0 | F5: ='Agency Assumptions'!F5 -> 12000 | G5: ='Agency Assumptions'!C21 -> 1 | H5: ='Agency Assumptions'!D21 -> 1 | I5: ='Agency Assumptions'!E21 -> 0.75 | J5: =SUM($C5:$F5)*G5 -> 15120 | K5: =SUM($C5:$F5)*H5 -> 15120 | L5: =SUM($C5:$F5)*I5 -> 11340 | N5: =$C5*G5*$F$23 -> 13660.8 | O5: =$C5*H5*$F$23 -> 13660.8 | P5: =$C5*I5*$F$23 -> 10245.6 | Q5: =$D5*G5*$F$24 -> 245670 | R5: =$D5*H5*$F$24 -> 245670 | S5: =$D5*I5*$F$24 -> 184252.5 | T5: =$E5*G5*$F$25 -> 0 | U5: =$E5*H5*$F$25 -> 0 | V5: =$E5*I5*$F$25 -> 0 | W5: =$F5*G5*$F$26 -> 1566240 | X5: =$F5*H5*$F$26 -> 1566240 | Y5: =$F5*I5*$F$26 -> 1174680 | Z5: =N5+Q5+T5+W5 -> 1825570.8 | AA5: =O5+R5+U5+X5 -> 1825570.8 | AB5: =P5+S5+V5+Y5 -> 1369178.1 | AD5: Year 1 | AE5: =J18 -> 27403.17 | AF5: =Z18 -> 3084030.606
B6: ='Agency Assumptions'!B6 -> Notify Submitters of Baseline Allowances | C6: ='Agency Assumptions'!C6 -> 0.1 | D6: ='Agency Assumptions'!D6 -> 1 | E6: ='Agency Assumptions'!E6 -> 0 | F6: ='Agency Assumptions'!F6 -> 1 | G6: ='Agency Assumptions'!C22 -> 85 | H6: ='Agency Assumptions'!D22 -> 85 | I6: ='Agency Assumptions'!E22 -> 85 | J6: =SUM($C6:$F6)*G6 -> 178.5 | K6: =SUM($C6:$F6)*H6 -> 178.5 | L6: =SUM($C6:$F6)*I6 -> 178.5 | N6: 967.64 | O6: 967.64 | P6: 967.64 | Q6: 6960.65 | R6: 6960.65 | S6: 6960.65 | T6: 0 | U6: 0 | V6: 0 | W6: =$F6*G6*$F$26 -> 11094.2 | X6: 11094.2 | Y6: 11094.2 | Z6: =N6+Q6+T6+W6 -> 19022.49 | AA6: =O6+R6+U6+X6 -> 19022.49 | AB6: =P6+S6+V6+Y6 -> 19022.49 | AD6: Year 2 | AE6: =K18 -> 27403.17 | AF6: =AA18 -> 3084030.606
B7: ='Agency Assumptions'!B7 -> Review Data for Reporting Completeness and Compliance | C7: ='Agency Assumptions'!C7 -> 0 | D7: ='Agency Assumptions'!D7 -> 0.33 | E7: ='Agency Assumptions'!E7 -> 0 | F7: ='Agency Assumptions'!F7 -> 0.5 | G7: ='Agency Assumptions'!C23 -> 1151 | H7: ='Agency Assumptions'!D23 -> 1151 | I7: ='Agency Assumptions'!E23 -> 1151 | J7: 955.33 | K7: 955.33 | L7: 955.33 | N7: 0 | O7: 0 | P7: 0 | Q7: 31104.2787 | R7: 31104.2787 | S7: 31104.2787 | T7: 0 | U7: 0 | V7: 0 | W7: 75114.26 | X7: 75114.26 | Y7: 75114.26 | Z7: 106218.5387 | AA7: 106218.5387 | AB7: 106218.5387 | AD7: Year 3 | AE7: =L18 -> 23623.17 | AF7: =AB18 -> 2627637.906
B8: ='Agency Assumptions'!B8 -> Process Transfer Reports | C8: ='Agency Assumptions'!C8 -> 0.1 | D8: ='Agency Assumptions'!D8 -> 0.5 | E8: ='Agency Assumptions'!E8 -> 0 | F8: ='Agency Assumptions'!F8 -> 0.5 | G8: ='Agency Assumptions'!C24 -> 40 | H8: ='Agency Assumptions'!D24 -> 40 | I8: ='Agency Assumptions'!E24 -> 40 | J8: 44 | K8: 44 | L8: 44 | N8: 455.36 | O8: 455.36 | P8: 455.36 | Q8: 1637.8 | R8: 1637.8 | S8: 1637.8 | T8: 0 | U8: 0 | V8: 0 | W8: 2610.4 | X8: 2610.4 | Y8: 2610.4 | Z8: 4703.56 | AA8: 4703.56 | AB8: 4703.56 | AD8: Annual Average | AE8: =AVERAGE(AE5:AE7) -> 26143.17 | AF8: =AVERAGE(AF5:AF7) -> 2931899.706
B9: ='Agency Assumptions'!B9 -> Review Petitions to Import HFCs | C9: ='Agency Assumptions'!C9 -> 0.1 | D9: ='Agency Assumptions'!D9 -> 1 | E9: ='Agency Assumptions'!E9 -> 0 | F9: ='Agency Assumptions'!F9 -> 0.5 | G9: ='Agency Assumptions'!C25 -> 94 | H9: ='Agency Assumptions'!D25 -> 94 | I9: ='Agency Assumptions'!E25 -> 94 | J9: 150.4 | K9: 150.4 | L9: 150.4 | N9: 1070.096 | O9: 1070.096 | P9: 1070.096 | Q9: 7697.66 | R9: 7697.66 | S9: 7697.66 | T9: 0 | U9: 0 | V9: 0 | W9: 6134.44 | X9: 6134.44 | Y9: 6134.44 | Z9: 14902.196 | AA9: 14902.196 | AB9: 14902.196
B10: ='Agency Assumptions'!B10 -> Review Importer of Record Reports | C10: ='Agency Assumptions'!C10 -> 0.1 | D10: ='Agency Assumptions'!D10 -> 1 | E10: ='Agency Assumptions'!E10 -> 0 | F10: ='Agency Assumptions'!F10 -> 0 | G10: ='Agency Assumptions'!C26 -> 75 | H10: ='Agency Assumptions'!D26 -> 75 | I10: ='Agency Assumptions'!E26 -> 75 | J10: 82.5 | K10: 82.5 | L10: 82.5 | N10: 853.8 | O10: 853.8 | P10: 853.8 | Q10: 6141.75 | R10: 6141.75 | S10: 6141.75 | T10: 0 | U10: 0 | V10: 0 | W10: 0 | X10: 0 | Y10: 0 | Z10: 6995.55 | AA10: 6995.55 | AB10: 6995.55 | AF10: =AF8+'Respondent Burden - ICR'!AG8 -> 10863529.31
B11: ='Agency Assumptions'!B11 -> Review Third-Party Audits | C11: ='Agency Assumptions'!C11 -> 0.1 | D11: ='Agency Assumptions'!D11 -> 2 | E11: ='Agency Assumptions'!E11 -> 0 | F11: ='Agency Assumptions'!F11 -> 4 | G11: ='Agency Assumptions'!C27 -> 162 | H11: ='Agency Assumptions'!D27 -> 162 | I11: ='Agency Assumptions'!E27 -> 162 | J11: 988.2 | K11: 988.2 | L11: 988.2 | N11: 1844.208 | O11: 1844.208 | P11: 1844.208 | Q11: 26532.36 | R11: 26532.36 | S11: 26532.36 | T11: 0 | U11: 0 | V11: 0 | W11: 84576.96 | X11: 84576.96 | Y11: 84576.96 | Z11: 112953.528 | AA11: 112953.528 | AB11: 112953.528
B12: ='Agency Assumptions'!B12 -> Provide Reporting Guidance | C12: ='Agency Assumptions'!C12 -> 0 | D12: ='Agency Assumptions'!D12 -> 2 | E12: ='Agency Assumptions'!E12 -> 0 | F12: ='Agency Assumptions'!F12 -> 2 | G12: ='Agency Assumptions'!C28 -> 40 | H12: ='Agency Assumptions'!D28 -> 40 | I12: ='Agency Assumptions'!E28 -> 40 | J12: 160 | K12: 160 | L12: 160 | N12: 0 | O12: 0 | P12: 0 | Q12: 6551.2 | R12: 6551.2 | S12: 6551.2 | T12: 0 | U12: 0 | V12: 0 | W12: 10441.6 | X12: 10441.6 | Y12: 10441.6 | Z12: 16992.8 | AA12: 16992.8 | AB12: 16992.8
B13: ='Agency Assumptions'!B13 -> Conduct Stakeholder Outreach Efforts | C13: ='Agency Assumptions'!C13 -> 4 | D13: ='Agency Assumptions'!D13 -> 60 | E13: ='Agency Assumptions'!E13 -> 0 | F13: ='Agency Assumptions'!F13 -> 120 | G13: ='Agency Assumptions'!C29 -> 1 | H13: ='Agency Assumptions'!D29 -> 1 | I13: ='Agency Assumptions'!E29 -> 1 | J13: 184 | K13: 184 | L13: 184 | N13: 455.36 | O13: 455.36 | P13: 455.36 | Q13: 4913.4 | R13: 4913.4 | S13: 4913.4 | T13: 0 | U13: 0 | V13: 0 | W13: 15662.4 | X13: 15662.4 | Y13: 15662.4 | Z13: 21031.16 | AA13: 21031.16 | AB13: 21031.16
B14: ='Agency Assumptions'!B14 -> Maintain the Data Tracking System | C14: ='Agency Assumptions'!C14 -> 40 | D14: ='Agency Assumptions'!D14 -> 750 | E14: ='Agency Assumptions'!E14 -> 0 | F14: ='Agency Assumptions'!F14 -> 1800 | G14: ='Agency Assumptions'!C30 -> 1 | H14: ='Agency Assumptions'!D30 -> 1 | I14: ='Agency Assumptions'!E30 -> 1 | J14: 2590 | K14: 2590 | L14: 2590 | N14: 4553.6 | O14: 4553.6 | P14: 4553.6 | Q14: 61417.5 | R14: 61417.5 | S14: 61417.5 | T14: 0 | U14: 0 | V14: 0 | W14: 234936 | X14: 234936 | Y14: 234936 | Z14: 300907.1 | AA14: 300907.1 | AB14: 300907.1
B15: ='Agency Assumptions'!B15 -> Review Import Data Submitted in ACE | C15: ='Agency Assumptions'!C15 -> 0.01 | D15: ='Agency Assumptions'!D15 -> 0.25 | E15: ='Agency Assumptions'!E15 -> 0 | F15: ='Agency Assumptions'!F15 -> 0.1 | G15: ='Agency Assumptions'!C31 -> 84 | H15: ='Agency Assumptions'!D31 -> 84 | I15: ='Agency Assumptions'!E31 -> 84 | J15: 30.24 | K15: 30.24 | L15: 30.24 | N15: 95.6256 | O15: 95.6256 | P15: 95.6256 | Q15: 1719.69 | R15: 1719.69 | S15: 1719.69 | T15: 0 | U15: 0 | V15: 0 | W15: 1096.368 | X15: 1096.368 | Y15: 1096.368 | Z15: 2911.6836 | AA15: 2911.6836 | AB15: 2911.6836
B16: ='Agency Assumptions'!B16 -> Conduct Compliance Monitoring Activities | C16: ='Agency Assumptions'!C16 -> 120 | D16: ='Agency Assumptions'!D16 -> 2500 | E16: ='Agency Assumptions'!E16 -> 0 | F16: ='Agency Assumptions'!F16 -> 750 | G16: ='Agency Assumptions'!C32 -> 2 | H16: ='Agency Assumptions'!D32 -> 2 | I16: ='Agency Assumptions'!E32 -> 2 | J16: 6740 | K16: 6740 | L16: 6740 | N16: 27321.6 | O16: 27321.6 | P16: 27321.6 | Q16: 409450 | R16: 409450 | S16: 409450 | T16: 0 | U16: 0 | V16: 0 | W16: 195780 | X16: 195780 | Y16: 195780 | Z16: 632551.6 | AA16: 632551.6 | AB16: 632551.6
B17: ='Agency Assumptions'!B17 -> Ensure Non-Exceedance of AIM Act Limits | C17: ='Agency Assumptions'!C17 -> 20 | D17: ='Agency Assumptions'!D17 -> 80 | E17: ='Agency Assumptions'!E17 -> 0 | F17: ='Agency Assumptions'!F17 -> 80 | G17: ='Agency Assumptions'!C33 -> 1 | H17: ='Agency Assumptions'!D33 -> 1 | I17: ='Agency Assumptions'!E33 -> 1 | J17: 180 | K17: 180 | L17: 180 | N17: 2276.8 | O17: 2276.8 | P17: 2276.8 | Q17: 6551.2 | R17: 6551.2 | S17: 6551.2 | T17: 0 | U17: 0 | V17: 0 | W17: 10441.6 | X17: 10441.6 | Y17: 10441.6 | Z17: 19269.6 | AA17: 19269.6 | AB17: 19269.6
B18: TOTAL | J18: =SUM(J5:J17) -> 27403.17 | K18: =SUM(K5:K17) -> 27403.17 | L18: =SUM(L5:L17) -> 23623.17 | N18: =SUM(N5:N17) -> 53554.8896 | O18: 53554.8896 | P18: 50139.6896 | Q18: 816347.4887 | R18: 816347.4887 | S18: 754929.9887 | T18: 0 | U18: 0 | V18: 0 | W18: 2214128.228 | X18: 2214128.228 | Y18: 1822568.228 | Z18: 3084030.606 | AA18: 3084030.606 | AB18: 2627637.906
B19: 3 Year Total | J19: =SUM(J18:L18) -> 78429.51 | N19: =SUM(N18:P18) -> 157249.4688 | Q19: =SUM(Q18:S18) -> 2387624.966 | T19: =SUM(T18:V18) -> 0 | W19: =SUM(W18:Y18) -> 6250824.684 | Z19: =SUM(Z18:AB18) -> 8795699.119
B20: Annual Average | J20: =AVERAGE(J18:L18) -> 26143.17 | N20: =AVERAGE(N18:P18) -> 52416.4896 | Q20: =AVERAGE(Q18:S18) -> 795874.9887 | T20: =AVERAGE(T18:V18) -> 0 | W20: =AVERAGE(W18:Y18) -> 2083608.228 | Z20: =AVERAGE(Z18:AB18) -> 2931899.706
B22: Hourly Rates
B23: Managerial Rate | C23: GS 15 Step 1 | D23: 71.15 | E23: 1.6 | F23: =ROUND(D23*E23,2) -> 113.84
B24: Technical Rate | C24: GS 13 Step 1 | D24: 51.18 | E24: 1.6 | F24: =ROUND(D24*E24,2) -> 81.89
B25: Clerical Rate | C25: GS 11 Step 1 | D25: 49.04 | E25: 1.6 | F25: =ROUND(D25*E25,2) -> 78.46
B26: Extramural Rate | F26: =(164.13+96.91)/2 -> 130.52
